Workbook

Sheet Q5-integrating
V1: var name | W1: f(var) | X1: step size | Y1: Ind | Z1: val | AA1: f(val) | AB1: Int f(val) | AC1: base | AD1: Integral | AE1: index | AF1: points | AG1: f(point) | AH1: simpson | AI1: integral
V2: 0 | W2: =(-0.00005349*V2^2-0.03440302*V2+414.53444491) -> 414.5344449 | X2: =(I20-H20)/1000 -> 2.481 | Y2: 0 | Z2: =$H$20+Y2*$X$2 -> 0 | AA2: =(-0.00005349*Z2^2-0.03440302*Z2+414.53444491) -> 414.5344449 | AB2: =IF(Z2<$K$20,0,IF(Z2>$L$20,0,AA2)) -> 414.5344449 | AC2: 0 | AE2: 0 | AF2: =$K$20+AE2*($L$20-$K$20)/500 -> 0 | AG2: =(-0.00005349*AF2^2-0.03440302*AF2+414.53444491) -> 414.5344449 | AH2: =AG2 -> 414.5344449 | AI2: =(L20-K20)/(3*500)*SUM(AH2:AH502) -> 459987.8244
W3: x | Y3: 1 | Z3: =$H$20+Y3*$X$2 -> 2.481 | AA3: =(-0.00005349*Z3^2-0.03440302*Z3+414.53444491) -> 414.4487618 | AB3: 414.4487618 | AC3: 0 | AE3: 1 | AF3: =$K$20+AE3*($L$20-$K$20)/500 -> 2.524546 | AG3: =(-0.00005349*AF3^2-0.03440302*AF3+414.53444491) -> 414.447252 | AH3: =4*AG3 -> 1657.789008
Y4: 2 | Z4: 4.962 | AA4: 414.3624201 | AB4: 414.3624201 | AC4: 0 | AE4: 2 | AF4: 5.049092 | AG4: 414.3593773 | AH4: =2*AG4 -> 828.7187545
Y5: 3 | Z5: 7.443 | AA5: 414.27542 | AB5: 414.27542 | AC5: 0 | AE5: 3 | AF5: 7.573638 | AG5: 414.2708207 | AH5: =4*AG5 -> 1657.083283
Y6: 4 | Z6: 9.924 | AA6: 414.1877613 | AB6: 414.1877613 | AC6: 0 | AE6: 4 | AF6: 10.098184 | AG6: 414.1815823 | AH6: =2*AG6 -> 828.3631647
Y7: 5 | Z7: 12.405 | AA7: 414.0994442 | AB7: 414.0994442 | AC7: 0 | AE7: 5 | AF7: 12.62273 | AG7: 414.0916621 | AH7: =4*AG7 -> 1656.366649
Y8: 6 | Z8: 14.886 | AA8: 414.0104685 | AB8: 414.0104685 | AC8: 0 | AE8: 6 | AF8: 15.147276 | AG8: 414.0010601 | AH8: =2*AG8 -> 828.0021203
Y9: 7 | Z9: 17.367 | AA9: 413.9208344 | AB9: 413.9208344 | AC9: 0 | AE9: 7 | AF9: 17.671822 | AG9: 413.9097763 | AH9: =4*AG9 -> 1655.639105
Y10: 8 | Z10: 19.848 | AA10: 413.8305418 | AB10: 413.8305418 | AC10: 0 | AE10: 8 | AF10: 20.196368 | AG10: 413.8178106 | AH10: =2*AG10 -> 827.6356213
Y11: 9 | Z11: 22.329 | AA11: 413.7395906 | AB11: 413.7395906 | AC11: 0 | AE11: 9 | AF11: 22.720914 | AG11: 413.7251632 | AH11: =4*AG11 -> 1654.900653
Y12: 10 | Z12: 24.81 | AA12: 413.647981 | AB12: 413.647981 | AC12: 0 | AE12: 10 | AF12: 25.24546 | AG12: 413.6318339 | AH12: =2*AG12 -> 827.2636678
Y13: 11 | Z13: 27.291 | AA13: 413.5557128 | AB13: 413.5557128 | AC13: 0 | AE13: 11 | AF13: 27.770006 | AG13: 413.5378228 | AH13: =4*AG13 -> 1654.151291
Y14: 12 | Z14: 29.772 | AA14: 413.4627862 | AB14: 413.4627862 | AC14: 0 | AE14: 12 | AF14: 30.294552 | AG14: 413.4431299 | AH14: =2*AG14 -> 826.8862597
Y15: 13 | Z15: 32.253 | AA15: 413.369201 | AB15: 413.369201 | AC15: 0 | AE15: 13 | AF15: 32.819098 | AG15: 413.3477551 | AH15: =4*AG15 -> 1653.39102
Y16: 14 | Z16: 34.734 | AA16: 413.2749574 | AB16: 413.2749574 | AC16: 0 | AE16: 14 | AF16: 35.343644 | AG16: 413.2516985 | AH16: =2*AG16 -> 826.5033971
Y17: 15 | Z17: 37.215 | AA17: 413.1800552 | AB17: 413.1800552 | AC17: 0 | AE17: 15 | AF17: 37.86819 | AG17: 413.1549602 | AH17: =4*AG17 -> 1652.619841
B18: Definition | E18: Computation | H18: Plot Interval | J18: Integration Interval | Y18: 16 | Z18: 39.696 | AA18: 413.0844946 | AB18: 413.0844946 | AC18: 0 | AE18: 16 | AF18: 40.392736 | AG18: 413.05754 | AH18: =2*AG18 -> 826.1150799
B19: Formula for f(x) | E19: x | F19: f(x) | H19: A | I19: B | K19: a | L19: b | Q19: in millions of dollars | Y19: 17 | Z19: 42.177 | AA19: 412.9882754 | AB19: 412.9882754 | AC19: 0 | AE19: 17 | AF19: 42.917282 | AG19: 412.9594379 | AH19: =4*AG19 -> 1651.837752
C20: =(-0.00005349*x^2-0.03440302*x+414.53444491) -> 414.5344449 | E20: 1262.273 | F20: =(-0.00005349*E20^2-0.03440302*E20+414.53444491) -> 285.8810527 | H20: 0 | I20: 2481 | K20: 0 | L20: 1262.273 | N20: =(L20-K20)/(3*500)*SUM(AH2:AH502) -> 459987.8244 | Q20: =N20/1000 -> 459.9878244 | S20: Q5 | Y20: 18 | Z20: 44.658 | AA20: 412.8913978 | AB20: 412.8913978 | AC20: 0 | AE20: 18 | AF20: 45.441828 | AG20: 412.8606541 | AH20: =2*AG20 -> 825.7213082
Y21: 19 | Z21: 47.139 | AA21: 412.7938616 | AB21: 412.7938616 | AC21: 0 | AE21: 19 | AF21: 47.966374 | AG21: 412.7611884 | AH21: =4*AG21 -> 1651.044754
N22: Constants | Y22: 20 | Z22: 49.62 | AA22: 412.695667 | AB22: 412.695667 | AC22: 0 | AE22: 20 | AF22: 50.49092 | AG22: 412.661041 | AH22: =2*AG22 -> 825.3220819
N23: s | Y23: 21 | Z23: 52.101 | AA23: 412.5968138 | AB23: 412.5968138 | AC23: 0 | AE23: 21 | AF23: 53.015466 | AG23: 412.5602117 | AH23: =4*AG23 -> 1650.240847
N24: t | Y24: 22 | Z24: 54.582 | AA24: 412.4973021 | AB24: 412.4973021 | AC24: 0 | AE24: 22 | AF24: 55.540012 | AG24: 412.4587005 | AH24: =2*AG24 -> 824.9174011
N25: u | Y25: 23 | Z25: 57.063 | AA25: 412.397132 | AB25: 412.397132 | AC25: 0 | AE25: 23 | AF25: 58.064558 | AG25: 412.3565076 | AH25: =4*AG25 -> 1649.42603
N26: v | R26: shaded area | S26: =Q20 -> 459.9878244 | Y26: 24 | Z26: 59.544 | AA26: 412.2963033 | AB26: 412.2963033 | AC26: 0 | AE26: 24 | AF26: 60.589104 | AG26: 412.2536328 | AH26: =2*AG26 -> 824.5072657
N27: w | R27: find D(1262.273) by using computation cell E20 | S27: =F20 -> 285.8810527 | Y27: 25 | Z27: 62.025 | AA27: 412.1948162 | AB27: 412.1948162 | AC27: 0 | AE27: 25 | AF27: 63.11365 | AG27: 412.1500763 | AH27: =4*AG27 -> 1648.600305
R28: find (D(1262.273)*1262.273)/1000 | S28: =F20*L20/1000 -> 360.859934 | Y28: 26 | Z28: 64.506 | AA28: 412.0926705 | AB28: 412.0926705 | AC28: 0 | AE28: 26 | AF28: 65.638196 | AG28: 412.0458379 | AH28: =2*AG28 -> 824.0916758
R29: R(1262.273) | S29: =S28 -> 360.859934 | Y29: 27 | Z29: 66.987 | AA29: 411.9898664 | AB29: 411.9898664 | AC29: 0 | AE29: 27 | AF29: 68.162742 | AG29: 411.9409177 | AH29: =4*AG29 -> 1647.763671
R30: CS at q=1262.273 | S30: =S26-S29 -> 99.12789032 | T30: in millions of dollars | Y30: 28 | Z30: 69.468 | AA30: 411.8864037 | AB30: 411.8864037 | AC30: 0 | AE30: 28 | AF30: 70.687288 | AG30: 411.8353156 | AH30: =2*AG30 -> 823.6706313
Y31: 29 | Z31: 71.949 | AA31: 411.7822826 | AB31: 411.7822826 | AC31: 0 | AE31: 29 | AF31: 73.211834 | AG31: 411.7290318 | AH31: =4*AG31 -> 1646.916127
Y32: 30 | Z32: 74.43 | AA32: 411.6775029 | AB32: 411.6775029 | AC32: 0 | AE32: 30 | AF32: 75.73638 | AG32: 411.6220661 | AH32: =2*AG32 -> 823.2441322
Y33: 31 | Z33: 76.911 | AA33: 411.5720647 | AB33: 411.5720647 | AC33: 0 | AE33: 31 | AF33: 78.260926 | AG33: 411.5144186 | AH33: =4*AG33 -> 1646.057674
Y34: 32 | Z34: 79.392 | AA34: 411.4659681 | AB34: 411.4659681 | AC34: 0 | AE34: 32 | AF34: 80.785472 | AG34: 411.4060893 | AH34: =2*AG34 -> 822.8121786
Y35: 33 | Z35: 81.873 | AA35: 411.3592129 | AB35: 411.3592129 | AC35: 0 | AE35: 33 | AF35: 83.310018 | AG35: 411.2970782 | AH35: =4*AG35 -> 1645.188313
Y36: 34 | Z36: 84.354 | AA36: 411.2517993 | AB36: 411.2517993 | AC36: 0 | AE36: 34 | AF36: 85.834564 | AG36: 411.1873852 | AH36: =2*AG36 -> 822.3747705
Y37: 35 | Z37: 86.835 | AA37: 411.1437271 | AB37: 411.1437271 | AC37: 0 | AE37: 35 | AF37: 88.35911 | AG37: 411.0770105 | AH37: =4*AG37 -> 1644.308042
Y38: 36 | Z38: 89.316 | AA38: 411.0349964 | AB38: 411.0349964 | AC38: 0 | AE38: 36 | AF38: 90.883656 | AG38: 410.9659539 | AH38: =2*AG38 -> 821.9319078
Y39: 37 | Z39: 91.797 | AA39: 410.9256073 | AB39: 410.9256073 | AC39: 0 | AE39: 37 | AF39: 93.408202 | AG39: 410.8542155 | AH39: =4*AG39 -> 1643.416862
Y40: 38 | Z40: 94.278 | AA40: 410.8155596 | AB40: 410.8155596 | AC40: 0 | AE40: 38 | AF40: 95.932748 | AG40: 410.7417953 | AH40: =2*AG40 -> 821.4835905
Y41: 39 | Z41: 96.759 | AA41: 410.7048535 | AB41: 410.7048535 | AC41: 0 | AE41: 39 | AF41: 98.457294 | AG41: 410.6286932 | AH41: =4*AG41 -> 1642.514773
Y42: 40 | Z42: 99.24 | AA42: 410.5934888 | AB42: 410.5934888 | AC42: 0 | AE42: 40 | AF42: 100.98184 | AG42: 410.5149094 | AH42: =2*AG42 -> 821.0298187
Y43: 41 | Z43: 101.721 | AA43: 410.4814656 | AB43: 410.4814656 | AC43: 0 | AE43: 41 | AF43: 103.506386 | AG43: 410.4004437 | AH43: =4*AG43 -> 1641.601775
Y44: 42 | Z44: 104.202 | AA44: 410.368784 | AB44: 410.368784 | AC44: 0 | AE44: 42 | AF44: 106.030932 | AG44: 410.2852962 | AH44: =2*AG44 -> 820.5705924
Y45: 43 | Z45: 106.683 | AA45: 410.2554438 | AB45: 410.2554438 | AC45: 0 | AE45: 43 | AF45: 108.555478 | AG45: 410.1694669 | AH45: =4*AG45 -> 1640.677867
Y46: 44 | Z46: 109.164 | AA46: 410.1414451 | AB46: 410.1414451 | AC46: 0 | AE46: 44 | AF46: 111.080024 | AG46: 410.0529557 | AH46: =2*AG46 -> 820.1059114
Y47: 45 | Z47: 111.645 | AA47: 410.026788 | AB47: 410.026788 | AC47: 0 | AE47: 45 | AF47: 113.60457 | AG47: 409.9357628 | AH47: =4*AG47 -> 1639.743051
Y48: 46 | Z48: 114.126 | AA48: 409.9114723 | AB48: 409.9114723 | AC48: 0 | AE48: 46 | AF48: 116.129116 | AG48: 409.817888 | AH48: =2*AG48 -> 819.635776
Y49: 47 | Z49: 116.607 | AA49: 409.7954981 | AB49: 409.7954981 | AC49: 0 | AE49: 47 | AF49: 118.653662 | AG49: 409.6993314 | AH49: =4*AG49 -> 1638.797326
Y50: 48 | Z50: 119.088 | AA50: 409.6788655 | AB50: 409.6788655 | AC50: 0 | AE50: 48 | AF50: 121.178208 | AG50: 409.580093 | AH50: =2*AG50 -> 819.160186
Y51: 49 | Z51: 121.569 | AA51: 409.5615743 | AB51: 409.5615743 | AC51: 0 | AE51: 49 | AF51: 123.702754 | AG51: 409.4601727 | AH51: =4*AG51 -> 1637.840691
Y52: 50 | Z52: 124.05 | AA52: 409.4436246 | AB52: 409.4436246 | AC52: 0 | AE52: 50 | AF52: 126.2273 | AG52: 409.3395707 | AH52: =2*AG52 -> 818.6791414
Y53: 51 | Z53: 126.531 | AA53: 409.3250165 | AB53: 409.3250165 | AC53: 0 | AE53: 51 | AF53: 128.751846 | AG53: 409.2182868 | AH53: =4*AG53 -> 1636.873147
Y54: 52 | Z54: 129.012 | AA54: 409.2057498 | AB54: 409.2057498 | AC54: 0 | AE54: 52 | AF54: 131.276392 | AG54: 409.0963211 | AH54: =2*AG54 -> 818.1926423
Y55: 53 | Z55: 131.493 | AA55: 409.0858246 | AB55: 409.0858246 | AC55: 0 | AE55: 53 | AF55: 133.800938 | AG55: 408.9736736 | AH55: =4*AG55 -> 1635.894694
Y56: 54 | Z56: 133.974 | AA56: 408.965241 | AB56: 408.965241 | AC56: 0 | AE56: 54 | AF56: 136.325484 | AG56: 408.8503443 | AH56: =2*AG56 -> 817.7006886
Y57: 55 | Z57: 136.455 | AA57: 408.8439988 | AB57: 408.8439988 | AC57: 0 | AE57: 55 | AF57: 138.85003 | AG57: 408.7263331 | AH57: =4*AG57 -> 1634.905333
Y58: 56 | Z58: 138.936 | AA58: 408.7220981 | AB58: 408.7220981 | AC58: 0 | AE58: 56 | AF58: 141.374576 | AG58: 408.6016402 | AH58: =2*AG58 -> 817.2032804
Y59: 57 | Z59: 141.417 | AA59: 408.5995389 | AB59: 408.5995389 | AC59: 0 | AE59: 57 | AF59: 143.899122 | AG59: 408.4762654 | AH59: =4*AG59 -> 1633.905062
Y60: 58 | Z60: 143.898 | AA60: 408.4763213 | AB60: 408.4763213 | AC60: 0 | AE60: 58 | AF60: 146.423668 | AG60: 408.3502088 | AH60: =2*AG60 -> 816.7004176
Y61: 59 | Z61: 146.379 | AA61: 408.3524451 | AB61: 408.3524451 | AC61: 0 | AE61: 59 | AF61: 148.948214 | AG61: 408.2234704 | AH61: =4*AG61 -> 1632.893881
Y62: 60 | Z62: 148.86 | AA62: 408.2279104 | AB62: 408.2279104 | AC62: 0 | AE62: 60 | AF62: 151.47276 | AG62: 408.0960501 | AH62: =2*AG62 -> 816.1921002
Y63: 61 | Z63: 151.341 | AA63: 408.1027172 | AB63: 408.1027172 | AC63: 0 | AE63: 61 | AF63: 153.997306 | AG63: 407.9679481 | AH63: =4*AG63 -> 1631.871792
Y64: 62 | Z64: 153.822 | AA64: 407.9768656 | AB64: 407.9768656 | AC64: 0 | AE64: 62 | AF64: 156.521852 | AG64: 407.8391642 | AH64: =2*AG64 -> 815.6783283
Y65: 63 | Z65: 156.303 | AA65: 407.8503554 | AB65: 407.8503554 | AC65: 0 | AE65: 63 | AF65: 159.046398 | AG65: 407.7096985 | AH65: =4*AG65 -> 1630.838794
Y66: 64 | Z66: 158.784 | AA66: 407.7231867 | AB66: =IF(Z66<$K$20,0,IF(Z66>$L$20,0,AA66)) -> 407.7231867 | AC66: 0 | AE66: 64 | AF66: 161.570944 | AG66: 407.579551 | AH66: =2*AG66 -> 815.1591019
Y67: 65 | Z67: =$H$20+Y67*$X$2 -> 161.265 | AA67: =(-0.00005349*Z67^2-0.03440302*Z67+414.53444491) -> 407.5953595 | AB67: 407.5953595 | AC67: 0 | AE67: 65 | AF67: =$K$20+AE67*($L$20-$K$20)/500 -> 164.09549 | AG67: =(-0.00005349*AF67^2-0.03440302*AF67+414.53444491) -> 407.4487216 | AH67: =4*AG67 -> 1629.794886
Y68: 66 | Z68: 163.746 | AA68: 407.4668739 | AB68: 407.4668739 | AC68: 0 | AE68: 66 | AF68: 166.620036 | AG68: 407.3172105 | AH68: =2*AG68 -> 814.6344209
Y69: 67 | Z69: 166.227 | AA69: 407.3377297 | AB69: 407.3377297 | AC69: 0 | AE69: 67 | AF69: 169.144582 | AG69: 407.1850175 | AH69: =4*AG69 -> 1628.74007
Y70: 68 | Z70: 168.708 | AA70: 407.207927 | AB70: 407.207927 | AC70: 0 | AE70: 68 | AF70: 171.669128 | AG70: 407.0521427 | AH70: =2*AG70 -> 814.1042854
Y71: 69 | Z71: 171.189 | AA71: 407.0774658 | AB71: 407.0774658 | AC71: 0 | AE71: 69 | AF71: 174.193674 | AG71: 406.9185861 | AH71: =4*AG71 -> 1627.674344
Y72: 70 | Z72: 173.67 | AA72: 406.9463462 | AB72: 406.9463462 | AC72: 0 | AE72: 70 | AF72: 176.71822 | AG72: 406.7843476 | AH72: =2*AG72 -> 813.5686953
Y73: 71 | Z73: 176.151 | AA73: 406.814568 | AB73: 406.814568 | AC73: 0 | AE73: 71 | AF73: 179.242766 | AG73: 406.6494274 | AH73: =4*AG73 -> 1626.59771
Y74: 72 | Z74: 178.632 | AA74: 406.6821313 | AB74: 406.6821313 | AC74: 0 | AE74: 72 | AF74: 181.767312 | AG74: 406.5138253 | AH74: =2*AG74 -> 813.0276506
Y75: 73 | Z75: 181.113 | AA75: 406.5490361 | AB75: 406.5490361 | AC75: 0 | AE75: 73 | AF75: 184.291858 | AG75: 406.3775414 | AH75: =4*AG75 -> 1625.510166
Y76: 74 | Z76: 183.594 | AA76: 406.4152824 | AB76: 406.4152824 | AC76: 0 | AE76: 74 | AF76: 186.816404 | AG76: 406.2405757 | AH76: =2*AG76 -> 812.4811514
Y77: 75 | Z77: 186.075 | AA77: 406.2808703 | AB77: 406.2808703 | AC77: 0 | AE77: 75 | AF77: 189.34095 | AG77: 406.1029282 | AH77: =4*AG77 -> 1624.411713
Y78: 76 | Z78: 188.556 | AA78: 406.1457996 | AB78: 406.1457996 | AC78: 0 | AE78: 76 | AF78: 191.865496 | AG78: 405.9645988 | AH78: =2*AG78 -> 811.9291976
Y79: 77 | Z79: 191.037 | AA79: 406.0100704 | AB79: 406.0100704 | AC79: 0 | AE79: 77 | AF79: 194.390042 | AG79: 405.8255877 | AH79: =4*AG79 -> 1623.302351
Y80: 78 | Z80: 193.518 | AA80: 405.8736827 | AB80: 405.8736827 | AC80: 0 | AE80: 78 | AF80: 196.914588 | AG80: 405.6858947 | AH80: =2*AG80 -> 811.3717893
Y81: 79 | Z81: 195.999 | AA81: 405.7366365 | AB81: 405.7366365 | AC81: 0 | AE81: 79 | AF81: 199.439134 | AG81: 405.5455199 | AH81: =4*AG81 -> 1622.182079
Y82: 80 | Z82: 198.48 | AA82: 405.5989318 | AB82: 405.5989318 | AC82: 0 | AE82: 80 | AF82: 201.96368 | AG82: 405.4044632 | AH82: =2*AG82 -> 810.8089265
Y83: 81 | Z83: 200.961 | AA83: 405.4605687 | AB83: 405.4605687 | AC83: 0 | AE83: 81 | AF83: 204.488226 | AG83: 405.2627248 | AH83: =4*AG83 -> 1621.050899
Y84: 82 | Z84: 203.442 | AA84: 405.321547 | AB84: 405.321547 | AC84: 0 | AE84: 82 | AF84: 207.012772 | AG84: 405.1203045 | AH84: =2*AG84 -> 810.240609
Y85: 83 | Z85: 205.923 | AA85: 405.1818668 | AB85: 405.1818668 | AC85: 0 | AE85: 83 | AF85: 209.537318 | AG85: 404.9772024 | AH85: =4*AG85 -> 1619.90881
Y86: 84 | Z86: 208.404 | AA86: 405.0415281 | AB86: 405.0415281 | AC86: 0 | AE86: 84 | AF86: 212.061864 | AG86: 404.8334185 | AH86: =2*AG86 -> 809.6668371
Y87: 85 | Z87: 210.885 | AA87: 404.9005309 | AB87: 404.9005309 | AC87: 0 | AE87: 85 | AF87: 214.58641 | AG87: 404.6889528 | AH87: =4*AG87 -> 1618.755811
Y88: 86 | Z88: 213.366 | AA88: 404.7588752 | AB88: 404.7588752 | AC88: 0 | AE88: 86 | AF88: 217.110956 | AG88: 404.5438053 | AH88: =2*AG88 -> 809.0876105
Y89: 87 | Z89: 215.847 | AA89: 404.616561 | AB89: 404.616561 | AC89: 0 | AE89: 87 | AF89: 219.635502 | AG89: 404.3979759 | AH89: =4*AG89 -> 1617.591904
Y90: 88 | Z90: 218.328 | AA90: 404.4735883 | AB90: 404.4735883 | AC90: 0 | AE90: 88 | AF90: 222.160048 | AG90: 404.2514647 | AH90: =2*AG90 -> 808.5029295
Y91: 89 | Z91: 220.809 | AA91: 404.3299572 | AB91: 404.3299572 | AC91: 0 | AE91: 89 | AF91: 224.684594 | AG91: 404.1042717 | AH91: =4*AG91 -> 1616.417087
Y92: 90 | Z92: 223.29 | AA92: 404.1856675 | AB92: 404.1856675 | AC92: 0 | AE92: 90 | AF92: 227.20914 | AG92: 403.9563969 | AH92: =2*AG92 -> 807.9127938
Y93: 91 | Z93: 225.771 | AA93: 404.0407193 | AB93: 404.0407193 | AC93: 0 | AE93: 91 | AF93: 229.733686 | AG93: 403.8078403 | AH93: =4*AG93 -> 1615.231361
Y94: 92 | Z94: 228.252 | AA94: 403.8951126 | AB94: 403.8951126 | AC94: 0 | AE94: 92 | AF94: 232.258232 | AG94: 403.6586018 | AH94: =2*AG94 -> 807.3172037
Y95: 93 | Z95: 230.733 | AA95: 403.7488474 | AB95: 403.7488474 | AC95: 0 | AE95: 93 | AF95: 234.782778 | AG95: 403.5086816 | AH95: =4*AG95 -> 1614.034726
Y96: 94 | Z96: 233.214 | AA96: 403.6019237 | AB96: 403.6019237 | AC96: 0 | AE96: 94 | AF96: 237.307324 | AG96: 403.3580795 | AH96: =2*AG96 -> 806.7161589
Y97: 95 | Z97: 235.695 | AA97: 403.4543415 | AB97: 403.4543415 | AC97: 0 | AE97: 95 | AF97: 239.83187 | AG97: 403.2067955 | AH97: =4*AG97 -> 1612.827182
Y98: 96 | Z98: 238.176 | AA98: 403.3061008 | AB98: 403.3061008 | AC98: 0 | AE98: 96 | AF98: 242.356416 | AG98: 403.0548298 | AH98: =2*AG98 -> 806.1096596
Y99: 97 | Z99: 240.657 | AA99: 403.1572016 | AB99: 403.1572016 | AC99: 0 | AE99: 97 | AF99: 244.880962 | AG99: 402.9021823 | AH99: =4*AG99 -> 1611.608729
Y100: 98 | Z100: 243.138 | AA100: 403.0076439 | AB100: 403.0076439 | AC100: 0 | AE100: 98 | AF100: 247.405508 | AG100: 402.7488529 | AH100: =2*AG100 -> 805.4977058
Y101: 99 | Z101: 245.619 | AA101: 402.8574277 | AB101: 402.8574277 | AC101: 0 | AE101: 99 | AF101: 249.930054 | AG101: 402.5948417 | AH101: =4*AG101 -> 1610.379367
Y102: 100 | Z102: 248.1 | AA102: 402.706553 | AB102: 402.706553 | AC102: 0 | AE102: 100 | AF102: 252.4546 | AG102: 402.4401487 | AH102: =2*AG102 -> 804.8802974
Y103: 101 | Z103: 250.581 | AA103: 402.5550199 | AB103: 402.5550199 | AC103: 0 | AE103: 101 | AF103: 254.979146 | AG103: 402.2847739 | AH103: =4*AG103 -> 1609.139095
Y104: 102 | Z104: 253.062 | AA104: 402.4028282 | AB104: 402.4028282 | AC104: 0 | AE104: 102 | AF104: 257.503692 | AG104: 402.1287172 | AH104: =2*AG104 -> 804.2574345
Y105: 103 | Z105: 255.543 | AA105: 402.249978 | AB105: 402.249978 | AC105: 0 | AE105: 103 | AF105: 260.028238 | AG105: 401.9719788 | AH105: =4*AG105 -> 1607.887915
Y106: 104 | Z106: 258.024 | AA106: 402.0964693 | AB106: 402.0964693 | AC106: 0 | AE106: 104 | AF106: 262.552784 | AG106: 401.8145585 | AH106: =2*AG106 -> 803.629117
Y107: 105 | Z107: 260.505 | AA107: 401.9423021 | AB107: 401.9423021 | AC107: 0 | AE107: 105 | AF107: 265.07733 | AG107: 401.6564564 | AH107: =4*AG107 -> 1606.625825
Y108: 106 | Z108: 262.986 | AA108: 401.7874764 | AB108: 401.7874764 | AC108: 0 | AE108: 106 | AF108: 267.601876 | AG108: 401.4976724 | AH108: =2*AG108 -> 802.9953449
Y109: 107 | Z109: 265.467 | AA109: 401.6319922 | AB109: 401.6319922 | AC109: 0 | AE109: 107 | AF109: 270.126422 | AG109: 401.3382067 | AH109: =4*AG109 -> 1605.352827
Y110: 108 | Z110: 267.948 | AA110: 401.4758495 | AB110: 401.4758495 | AC110: 0 | AE110: 108 | AF110: 272.650968 | AG110: 401.1780591 | AH110: =2*AG110 -> 802.3561183
Y111: 109 | Z111: 270.429 | AA111: 401.3190483 | AB111: 401.3190483 | AC111: 0 | AE111: 109 | AF111: 275.175514 | AG111: 401.0172298 | AH111: =4*AG111 -> 1604.068919
Y112: 110 | Z112: 272.91 | AA112: 401.1615886 | AB112: 401.1615886 | AC112: 0 | AE112: 110 | AF112: 277.70006 | AG112: 400.8557186 | AH112: =2*AG112 -> 801.7114371
Y113: 111 | Z113: 275.391 | AA113: 401.0034704 | AB113: 401.0034704 | AC113: 0 | AE113: 111 | AF113: 280.224606 | AG113: 400.6935255 | AH113: =4*AG113 -> 1602.774102
Y114: 112 | Z114: 277.872 | AA114: 400.8446937 | AB114: 400.8446937 | AC114: 0 | AE114: 112 | AF114: 282.749152 | AG114: 400.5306507 | AH114: =2*AG114 -> 801.0613014
Y115: 113 | Z115: 280.353 | AA115: 400.6852585 | AB115: 400.6852585 | AC115: 0 | AE115: 113 | AF115: 285.273698 | AG115: 400.3670941 | AH115: =4*AG115 -> 1601.468376
Y116: 114 | Z116: 282.834 | AA116: 400.5251648 | AB116: 400.5251648 | AC116: 0 | AE116: 114 | AF116: 287.798244 | AG116: 400.2028556 | AH116: =2*AG116 -> 800.4057112
Y117: 115 | Z117: 285.315 | AA117: 400.3644126 | AB117: 400.3644126 | AC117: 0 | AE117: 115 | AF117: 290.32279 | AG117: 400.0379353 | AH117: =4*AG117 -> 1600.151741
Y118: 116 | Z118: 287.796 | AA118: 400.2030019 | AB118: 400.2030019 | AC118: 0 | AE118: 116 | AF118: 292.847336 | AG118: 399.8723332 | AH118: =2*AG118 -> 799.7446663
Y119: 117 | Z119: 290.277 | AA119: 400.0409327 | AB119: 400.0409327 | AC119: 0 | AE119: 117 | AF119: 295.371882 | AG119: 399.7060492 | AH119: =4*AG119 -> 1598.824197
Y120: 118 | Z120: 292.758 | AA120: 399.878205 | AB120: 399.878205 | AC120: 0 | AE120: 118 | AF120: 297.896428 | AG120: 399.5390835 | AH120: =2*AG120 -> 799.078167
Y121: 119 | Z121: 295.239 | AA121: 399.7148188 | AB121: 399.7148188 | AC121: 0 | AE121: 119 | AF121: 300.420974 | AG121: 399.3714359 | AH121: =4*AG121 -> 1597.485744
Y122: 120 | Z122: 297.72 | AA122: 399.5507741 | AB122: 399.5507741 | AC122: 0 | AE122: 120 | AF122: 302.94552 | AG122: 399.2031065 | AH122: =2*AG122 -> 798.406213
Y123: 121 | Z123: 300.201 | AA123: 399.3860708 | AB123: 399.3860708 | AC123: 0 | AE123: 121 | AF123: 305.470066 | AG123: 399.0340953 | AH123: =4*AG123 -> 1596.136381
Y124: 122 | Z124: 302.682 | AA124: 399.2207091 | AB124: 399.2207091 | AC124: 0 | AE124: 122 | AF124: 307.994612 | AG124: 398.8644023 | AH124: =2*AG124 -> 797.7288046
Y125: 123 | Z125: 305.163 | AA125: 399.0546889 | AB125: 399.0546889 | AC125: 0 | AE125: 123 | AF125: 310.519158 | AG125: 398.6940274 | AH125: =4*AG125 -> 1594.77611
Y126: 124 | Z126: 307.644 | AA126: 398.8880102 | AB126: 398.8880102 | AC126: 0 | AE126: 124 | AF126: 313.043704 | AG126: 398.5229708 | AH126: =2*AG126 -> 797.0459415
Y127: 125 | Z127: 310.125 | AA127: 398.720673 | AB127: 398.720673 | AC127: 0 | AE127: 125 | AF127: 315.56825 | AG127: 398.3512323 | AH127: =4*AG127 -> 1593.404929
Y128: 126 | Z128: 312.606 | AA128: 398.5526773 | AB128: 398.5526773 | AC128: 0 | AE128: 126 | AF128: 318.092796 | AG128: 398.178812 | AH128: =2*AG128 -> 796.357624
Y129: 127 | Z129: 315.087 | AA129: 398.3840231 | AB129: 398.3840231 | AC129: 0 | AE129: 127 | AF129: 320.617342 | AG129: 398.0057099 | AH129: =4*AG129 -> 1592.022839
Y130: 128 | Z130: 317.568 | AA130: 398.2147104 | AB130: =IF(Z130<$K$20,0,IF(Z130>$L$20,0,AA130)) -> 398.2147104 | AC130: 0 | AE130: 128 | AF130: 323.141888 | AG130: 397.8319259 | AH130: =2*AG130 -> 795.6638518
Y131: 129 | Z131: =$H$20+Y131*$X$2 -> 320.049 | AA131: =(-0.00005349*Z131^2-0.03440302*Z131+414.53444491) -> 398.0447392 | AB131: 398.0447392 | AC131: 0 | AE131: 129 | AF131: =$K$20+AE131*($L$20-$K$20)/500 -> 325.666434 | AG131: =(-0.00005349*AF131^2-0.03440302*AF131+414.53444491) -> 397.6574602 | AH131: =4*AG131 -> 1590.629841
Y132: 130 | Z132: 322.53 | AA132: 397.8741095 | AB132: 397.8741095 | AC132: 0 | AE132: 130 | AF132: 328.19098 | AG132: 397.4823126 | AH132: =2*AG132 -> 794.9646251
Y133: 131 | Z133: 325.011 | AA133: 397.7028213 | AB133: 397.7028213 | AC133: 0 | AE133: 131 | AF133: 330.715526 | AG133: 397.3064832 | AH133: =4*AG133 -> 1589.225933
Y134: 132 | Z134: 327.492 | AA134: 397.5308746 | AB134: 397.5308746 | AC134: 0 | AE134: 132 | AF134: 333.240072 | AG134: 397.1299719 | AH134: =2*AG134 -> 794.2599439
Y135: 133 | Z135: 329.973 | AA135: 397.3582693 | AB135: 397.3582693 | AC135: 0 | AE135: 133 | AF135: 335.764618 | AG135: 396.9527789 | AH135: =4*AG135 -> 1587.811116
Y136: 134 | Z136: 332.454 | AA136: 397.1850056 | AB136: 397.1850056 | AC136: 0 | AE136: 134 | AF136: 338.289164 | AG136: 396.7749041 | AH136: =2*AG136 -> 793.5498081
Y137: 135 | Z137: 334.935 | AA137: 397.0110834 | AB137: 397.0110834 | AC137: 0 | AE137: 135 | AF137: 340.81371 | AG137: 396.5963474 | AH137: =4*AG137 -> 1586.38539
Y138: 136 | Z138: 337.416 | AA138: 396.8365027 | AB138: 396.8365027 | AC138: 0 | AE138: 136 | AF138: 343.338256 | AG138: 396.4171089 | AH138: =2*AG138 -> 792.8342178
Y139: 137 | Z139: 339.897 | AA139: 396.6612635 | AB139: 396.6612635 | AC139: 0 | AE139: 137 | AF139: 345.862802 | AG139: 396.2371886 | AH139: =4*AG139 -> 1584.948754
Y140: 138 | Z140: 342.378 | AA140: 396.4853658 | AB140: 396.4853658 | AC140: 0 | AE140: 138 | AF140: 348.387348 | AG140: 396.0565864 | AH140: =2*AG140 -> 792.1131729
Y141: 139 | Z141: 344.859 | AA141: 396.3088096 | AB141: 396.3088096 | AC141: 0 | AE141: 139 | AF141: 350.911894 | AG141: 395.8753025 | AH141: =4*AG141 -> 1583.50121
Y142: 140 | Z142: 347.34 | AA142: 396.1315948 | AB142: 396.1315948 | AC142: 0 | AE142: 140 | AF142: 353.43644 | AG142: 395.6933367 | AH142: =2*AG142 -> 791.3866734
Y143: 141 | Z143: 349.821 | AA143: 395.9537216 | AB143: 395.9537216 | AC143: 0 | AE143: 141 | AF143: 355.960986 | AG143: 395.5106891 | AH143: =4*AG143 -> 1582.042756
Y144: 142 | Z144: 352.302 | AA144: 395.7751899 | AB144: 395.7751899 | AC144: 0 | AE144: 142 | AF144: 358.485532 | AG144: 395.3273597 | AH144: =2*AG144 -> 790.6547194
Y145: 143 | Z145: 354.783 | AA145: 395.5959997 | AB145: 395.5959997 | AC145: 0 | AE145: 143 | AF145: 361.010078 | AG145: 395.1433485 | AH145: =4*AG145 -> 1580.573394
Y146: 144 | Z146: 357.264 | AA146: 395.416151 | AB146: 395.416151 | AC146: 0 | AE146: 144 | AF146: 363.534624 | AG146: 394.9586554 | AH146: =2*AG146 -> 789.9173108
Y147: 145 | Z147: 359.745 | AA147: 395.2356438 | AB147: 395.2356438 | AC147: 0 | AE147: 145 | AF147: 366.05917 | AG147: 394.7732806 | AH147: =4*AG147 -> 1579.093122
Y148: 146 | Z148: 362.226 | AA148: 395.054478 | AB148: 395.054478 | AC148: 0 | AE148: 146 | AF148: 368.583716 | AG148: 394.5872239 | AH148: =2*AG148 -> 789.1744477
Y149: 147 | Z149: 364.707 | AA149: 394.8726538 | AB149: 394.8726538 | AC149: 0 | AE149: 147 | AF149: 371.108262 | AG149: 394.4004854 | AH149: =4*AG149 -> 1577.601941
Y150: 148 | Z150: 367.188 | AA150: 394.6901711 | AB150: 394.6901711 | AC150: 0 | AE150: 148 | AF150: 373.632808 | AG150: 394.213065 | AH150: =2*AG150 -> 788.4261301
Y151: 149 | Z151: 369.669 | AA151: 394.5070299 | AB151: 394.5070299 | AC151: 0 | AE151: 149 | AF151: 376.157354 | AG151: 394.0249629 | AH151: =4*AG151 -> 1576.099852
Y152: 150 | Z152: 372.15 | AA152: 394.3232302 | AB152: 394.3232302 | AC152: 0 | AE152: 150 | AF152: 378.6819 | AG152: 393.8361789 | AH152: =2*AG152 -> 787.6723579
Y153: 151 | Z153: 374.631 | AA153: 394.1387719 | AB153: 394.1387719 | AC153: 0 | AE153: 151 | AF153: 381.206446 | AG153: 393.6467131 | AH153: =4*AG153 -> 1574.586853
Y154: 152 | Z154: 377.112 | AA154: 393.9536552 | AB154: 393.9536552 | AC154: 0 | AE154: 152 | AF154: 383.730992 | AG154: 393.4565655 | AH154: =2*AG154 -> 786.9131311
Y155: 153 | Z155: 379.593 | AA155: 393.76788 | AB155: 393.76788 | AC155: 0 | AE155: 153 | AF155: 386.255538 | AG155: 393.2657361 | AH155: =4*AG155 -> 1573.062944
Y156: 154 | Z156: 382.074 | AA156: 393.5814463 | AB156: 393.5814463 | AC156: 0 | AE156: 154 | AF156: 388.780084 | AG156: 393.0742249 | AH156: =2*AG156 -> 786.1484498
Y157: 155 | Z157: 384.555 | AA157: 393.3943541 | AB157: 393.3943541 | AC157: 0 | AE157: 155 | AF157: 391.30463 | AG157: 392.8820318 | AH157: =4*AG157 -> 1571.528127
Y158: 156 | Z158: 387.036 | AA158: 393.2066033 | AB158: 393.2066033 | AC158: 0 | AE158: 156 | AF158: 393.829176 | AG158: 392.6891569 | AH158: =2*AG158 -> 785.3783139
Y159: 157 | Z159: 389.517 | AA159: 393.0181941 | AB159: 393.0181941 | AC159: 0 | AE159: 157 | AF159: 396.353722 | AG159: 392.4956002 | AH159: =4*AG159 -> 1569.982401
Y160: 158 | Z160: 391.998 | AA160: 392.8291264 | AB160: 392.8291264 | AC160: 0 | AE160: 158 | AF160: 398.878268 | AG160: 392.3013617 | AH160: =2*AG160 -> 784.6027235
Y161: 159 | Z161: 394.479 | AA161: 392.6394002 | AB161: 392.6394002 | AC161: 0 | AE161: 159 | AF161: 401.402814 | AG161: 392.1064414 | AH161: =4*AG161 -> 1568.425766
Y162: 160 | Z162: 396.96 | AA162: 392.4490154 | AB162: 392.4490154 | AC162: 0 | AE162: 160 | AF162: 403.92736 | AG162: 391.9108392 | AH162: =2*AG162 -> 783.8216785
Y163: 161 | Z163: 399.441 | AA163: 392.2579722 | AB163: 392.2579722 | AC163: 0 | AE163: 161 | AF163: 406.451906 | AG163: 391.7145553 | AH163: =4*AG163 -> 1566.858221
Y164: 162 | Z164: 401.922 | AA164: 392.0662705 | AB164: 392.0662705 | AC164: 0 | AE164: 162 | AF164: 408.976452 | AG164: 391.5175895 | AH164: =2*AG164 -> 783.0351789
Y165: 163 | Z165: 404.403 | AA165: 391.8739103 | AB165: 391.8739103 | AC165: 0 | AE165: 163 | AF165: 411.500998 | AG165: 391.3199419 | AH165: =4*AG165 -> 1565.279767
Y166: 164 | Z166: 406.884 | AA166: 391.6808915 | AB166: 391.6808915 | AC166: 0 | AE166: 164 | AF166: 414.025544 | AG166: 391.1216124 | AH166: =2*AG166 -> 782.2432249
Y167: 165 | Z167: 409.365 | AA167: 391.4872143 | AB167: 391.4872143 | AC167: 0 | AE167: 165 | AF167: 416.55009 | AG167: 390.9226012 | AH167: =4*AG167 -> 1563.690405
Y168: 166 | Z168: 411.846 | AA168: 391.2928786 | AB168: 391.2928786 | AC168: 0 | AE168: 166 | AF168: 419.074636 | AG168: 390.7229081 | AH168: =2*AG168 -> 781.4458162
Y169: 167 | Z169: 414.327 | AA169: 391.0978843 | AB169: 391.0978843 | AC169: 0 | AE169: 167 | AF169: 421.599182 | AG169: 390.5225332 | AH169: =4*AG169 -> 1562.090133
Y170: 168 | Z170: 416.808 | AA170: 390.9022316 | AB170: 390.9022316 | AC170: 0 | AE170: 168 | AF170: 424.123728 | AG170: 390.3214765 | AH170: =2*AG170 -> 780.642953
Y171: 169 | Z171: 419.289 | AA171: 390.7059204 | AB171: 390.7059204 | AC171: 0 | AE171: 169 | AF171: 426.648274 | AG171: 390.119738 | AH171: =4*AG171 -> 1560.478952
Y172: 170 | Z172: 421.77 | AA172: 390.5089507 | AB172: 390.5089507 | AC172: 0 | AE172: 170 | AF172: 429.17282 | AG172: 389.9173176 | AH172: =2*AG172 -> 779.8346353
Y173: 171 | Z173: 424.251 | AA173: 390.3113224 | AB173: 390.3113224 | AC173: 0 | AE173: 171 | AF173: 431.697366 | AG173: 389.7142155 | AH173: =4*AG173 -> 1558.856862
Y174: 172 | Z174: 426.732 | AA174: 390.1130357 | AB174: 390.1130357 | AC174: 0 | AE174: 172 | AF174: 434.221912 | AG174: 389.5104315 | AH174: =2*AG174 -> 779.020863
Y175: 173 | Z175: 429.213 | AA175: 389.9140905 | AB175: 389.9140905 | AC175: 0 | AE175: 173 | AF175: 436.746458 | AG175: 389.3059657 | AH175: =4*AG175 -> 1557.223863
Y176: 174 | Z176: 431.694 | AA176: 389.7144867 | AB176: 389.7144867 | AC176: 0 | AE176: 174 | AF176: 439.271004 | AG176: 389.1008181 | AH176: =2*AG176 -> 778.2016361
Y177: 175 | Z177: 434.175 | AA177: 389.5142245 | AB177: 389.5142245 | AC177: 0 | AE177: 175 | AF177: 441.79555 | AG177: 388.8949886 | AH177: =4*AG177 -> 1555.579954
Y178: 176 | Z178: 436.656 | AA178: 389.3133038 | AB178: 389.3133038 | AC178: 0 | AE178: 176 | AF178: 444.320096 | AG178: 388.6884774 | AH178: =2*AG178 -> 777.3769547
Y179: 177 | Z179: 439.137 | AA179: 389.1117245 | AB179: 389.1117245 | AC179: 0 | AE179: 177 | AF179: 446.844642 | AG179: 388.4812843 | AH179: =4*AG179 -> 1553.925137
Y180: 178 | Z180: 441.618 | AA180: 388.9094868 | AB180: 388.9094868 | AC180: 0 | AE180: 178 | AF180: 449.369188 | AG180: 388.2734094 | AH180: =2*AG180 -> 776.5468188
Y181: 179 | Z181: 444.099 | AA181: 388.7065906 | AB181: 388.7065906 | AC181: 0 | AE181: 179 | AF181: 451.893734 | AG181: 388.0648527 | AH181: =4*AG181 -> 1552.259411
Y182: 180 | Z182: 446.58 | AA182: 388.5030358 | AB182: 388.5030358 | AC182: 0 | AE182: 180 | AF182: 454.41828 | AG182: 387.8556141 | AH182: =2*AG182 -> 775.7112283
Y183: 181 | Z183: 449.061 | AA183: 388.2988226 | AB183: 388.2988226 | AC183: 0 | AE183: 181 | AF183: 456.942826 | AG183: 387.6456938 | AH183: =4*AG183 -> 1550.582775
Y184: 182 | Z184: 451.542 | AA184: 388.0939508 | AB184: 388.0939508 | AC184: 0 | AE184: 182 | AF184: 459.467372 | AG184: 387.4350916 | AH184: =2*AG184 -> 774.8701832
Y185: 183 | Z185: 454.023 | AA185: 387.8884206 | AB185: 387.8884206 | AC185: 0 | AE185: 183 | AF185: 461.991918 | AG185: 387.2238076 | AH185: =4*AG185 -> 1548.89523
Y186: 184 | Z186: 456.504 | AA186: 387.6822319 | AB186: 387.6822319 | AC186: 0 | AE186: 184 | AF186: 464.516464 | AG186: 387.0118418 | AH186: =2*AG186 -> 774.0236836
Y187: 185 | Z187: 458.985 | AA187: 387.4753846 | AB187: 387.4753846 | AC187: 0 | AE187: 185 | AF187: 467.04101 | AG187: 386.7991942 | AH187: =4*AG187 -> 1547.196777
Y188: 186 | Z188: 461.466 | AA188: 387.2678789 | AB188: 387.2678789 | AC188: 0 | AE188: 186 | AF188: 469.565556 | AG188: 386.5858647 | AH188: =2*AG188 -> 773.1717294
Y189: 187 | Z189: 463.947 | AA189: 387.0597147 | AB189: 387.0597147 | AC189: 0 | AE189: 187 | AF189: 472.090102 | AG189: 386.3718534 | AH189: =4*AG189 -> 1545.487414
Y190: 188 | Z190: 466.428 | AA190: 386.8508919 | AB190: 386.8508919 | AC190: 0 | AE190: 188 | AF190: 474.614648 | AG190: 386.1571603 | AH190: =2*AG190 -> 772.3143207
Y191: 189 | Z191: 468.909 | AA191: 386.6414107 | AB191: 386.6414107 | AC191: 0 | AE191: 189 | AF191: 477.139194 | AG191: 385.9417854 | AH191: =4*AG191 -> 1543.767142
Y192: 190 | Z192: 471.39 | AA192: 386.4312709 | AB192: 386.4312709 | AC192: 0 | AE192: 190 | AF192: 479.66374 | AG192: 385.7257287 | AH192: =2*AG192 -> 771.4514574
Y193: 191 | Z193: 473.871 | AA193: 386.2204727 | AB193: 386.2204727 | AC193: 0 | AE193: 191 | AF193: 482.188286 | AG193: 385.5089902 | AH193: =4*AG193 -> 1542.035961
Y194: 192 | Z194: 476.352 | AA194: 386.0090159 | AB194: =IF(Z194<$K$20,0,IF(Z194>$L$20,0,AA194)) -> 386.0090159 | AC194: 0 | AE194: 192 | AF194: 484.712832 | AG194: 385.2915698 | AH194: =2*AG194 -> 770.5831396
Y195: 193 | Z195: =$H$20+Y195*$X$2 -> 478.833 | AA195: =(-0.00005349*Z195^2-0.03440302*Z195+414.53444491) -> 385.7969007 | AB195: 385.7969007 | AC195: 0 | AE195: 193 | AF195: =$K$20+AE195*($L$20-$K$20)/500 -> 487.237378 | AG195: =(-0.00005349*AF195^2-0.03440302*AF195+414.53444491) -> 385.0734676 | AH195: =4*AG195 -> 1540.29387
Y196: 194 | Z196: 481.314 | AA196: 385.584127 | AB196: 385.584127 | AC196: 0 | AE196: 194 | AF196: 489.761924 | AG196: 384.8546836 | AH196: =2*AG196 -> 769.7093672
Y197: 195 | Z197: 483.795 | AA197: 385.3706947 | AB197: 385.3706947 | AC197: 0 | AE197: 195 | AF197: 492.28647 | AG197: 384.6352178 | AH197: =4*AG197 -> 1538.540871
Y198: 196 | Z198: 486.276 | AA198: 385.156604 | AB198: 385.156604 | AC198: 0 | AE198: 196 | AF198: 494.811016 | AG198: 384.4150701 | AH198: =2*AG198 -> 768.8301403
Y199: 197 | Z199: 488.757 | AA199: 384.9418547 | AB199: 384.9418547 | AC199: 0 | AE199: 197 | AF199: 497.335562 | AG199: 384.1942407 | AH199: =4*AG199 -> 1536.776963
Y200: 198 | Z200: 491.238 | AA200: 384.726447 | AB200: 384.726447 | AC200: 0 | AE200: 198 | AF200: 499.860108 | AG200: 383.9727294 | AH200: =2*AG200 -> 767.9454588
... 802 more rows

Sheet Q9
B5: Potential national market: | D5: 350000000
B7: Test Markets
B8: Market Number | C8: Market Size | D8: Price | E8: Projected Yearly Sales (number of drives) | F8: Projected Yearly Sales (in K's) in National Mkt
B9: 1 | C9: 144900 | D9: 265.95 | E9: 570 | F9: =(E9/C9)*$D$5/1000 -> 1376.811594
B10: 2 | C10: 4627600 | D10: 276.95 | E10: 17178 | F10: 1299.226381
B11: 3 | C11: 1049800 | D11: 287.95 | E11: 3801 | F11: 1267.241379
B12: 4 | C12: 2946500 | D12: 299.95 | E12: 9941 | F12: 1180.841677
B13: 5 | C13: 5042300 | D13: 310.95 | E13: 15594 | F13: 1082.422704
B14: 6 | C14: 3617600 | D14: 321.95 | E14: 10859 | F14: 1050.599845
D15: y-values | F15: x-values
B16: Fixed Cost For The Year: | D16: 135000000 | E16: 135
B18: Variable Costs
B19: Quantity | D19: Cost per drive
B20: First: | C20: 800000 | D20: =160*0.93 -> 148.8 | E20: 800 | F20: Batch size1
B21: Next: | C21: 400000 | D21: =128*0.93 -> 119.04 | E21: 400 | F21: Batch size2
B22: Further: | D22: =72*0.93 -> 66.96 | E22: 1200 | F22: sum of batch size 1&2
B24: coefficients of the quadratic function-8 decimal places(For Q9) | E24: h used for the difference quotient
B25: a | C25: -5.349e-05 | E25: 1e-06
B26: b | C26: -0.03440302
B27: c | C27: 414.5344449 | G27: derivative = a*3*q^2+b*2*q+c
B28: select q to include the x-intercept of D(q) | C28: use equation obtained from fitting a quadratic trend line(use a,b,c) | E28: user defined COST function | G28: using derivative of aq^3+bq^2+cq | H28: using MR(q)=1000*R'(q) | I28: using nested IF function | J28: using MR(q)-MC(q)
B29: q | C29: D(q) | D29: R(q) | E29: C(q) | F29: P(q) | G29: R'(q) | H29: MR(q) | I29: MC(q) | J29: MP(q)
B30: 0 | C30: =$C$25*B30^2+$C$26*B30+$C$27 -> 414.5344449 | D30: =B30*C30/1000 -> 0 | E30: =COST(B30,$E$16,$E$20,$E$21,$D$20,$D$21,$D$22) -> 135 | F30: =D30-E30 -> -135 | G30: =($C$25*(3*B30^2)+$C$26*(2*B30)+$C$27)/1000 -> 0.4145344449 | H30: =1000*G30 -> 414.5344449 | I30: =IF(B30<$E$20,$D$20,IF(B30<$E$22,$D$21,$D$22)) -> 148.8 | J30: =H30-I30 -> 265.7344449
B31: 1 | C31: =$C$25*B31^2+$C$26*B31+$C$27 -> 414.4999884 | D31: =B31*C31/1000 -> 0.4144999884 | E31: =COST(B31,$E$16,$E$20,$E$21,$D$20,$D$21,$D$22) -> 135.1488 | F31: =D31-E31 -> -134.7343 | G31: =($C$25*(3*B31^2)+$C$26*(2*B31)+$C$27)/1000 -> 0.4144654784 | H31: =1000*G31 -> 414.4654784 | I31: =IF(B31<$E$20,$D$20,IF(B31<$E$22,$D$21,$D$22)) -> 148.8 | J31: =H31-I31 -> 265.6654784
B32: 2 | C32: 414.4654249 | D32: 0.8289308498 | E32: 135.2976 | F32: -134.4686692 | G32: 0.414396191 | H32: 414.396191 | I32: 148.8 | J32: 265.5961909
B33: 3 | C33: 414.4307544 | D33: 1.243292263 | E33: 135.4464 | F33: -134.2031077 | G33: 0.4143265826 | H33: 414.3265826 | I33: 148.8 | J33: 265.5265826
B34: 4 | C34: 414.395977 | D34: 1.657583908 | E34: 135.5952 | F34: -133.9376161 | G34: 0.4142566532 | H34: 414.2566532 | I34: 148.8 | J34: 265.4566532
B35: 5 | C35: 414.3610926 | D35: 2.071805463 | E35: 135.744 | F35: -133.6721945 | G35: 0.414186403 | H35: 414.186403 | I35: 148.8 | J35: 265.386403
B36: 6 | C36: 414.3261011 | D36: 2.485956607 | E36: 135.8928 | F36: -133.4068434 | G36: 0.4141158317 | H36: 414.1158317 | I36: 148.8 | J36: 265.3158317
B37: 7 | C37: 414.2910028 | D37: 2.900037019 | E37: 136.0416 | F37: -133.141563 | G37: 0.4140449396 | H37: 414.0449396 | I37: 148.8 | J37: 265.2449396
B38: 8 | C38: 414.2557974 | D38: 3.314046379 | E38: 136.1904 | F38: -132.8763536 | G38: 0.4139737265 | H38: 413.9737265 | I38: 148.8 | J38: 265.1737265
B39: 9 | C39: 414.220485 | D39: 3.727984365 | E39: 136.3392 | F39: -132.6112156 | G39: 0.4139021925 | H39: 413.9021925 | I39: 148.8 | J39: 265.1021925
B40: 10 | C40: 414.1850657 | D40: 4.141850657 | E40: 136.488 | F40: -132.3461493 | G40: 0.4138303375 | H40: 413.8303375 | I40: 148.8 | J40: 265.0303375
B41: 11 | C41: 414.1495394 | D41: 4.555644933 | E41: 136.6368 | F41: -132.0811551 | G41: 0.4137581616 | H41: 413.7581616 | I41: 148.8 | J41: 264.9581616
B42: 12 | C42: 414.1139061 | D42: 4.969366873 | E42: 136.7856 | F42: -131.8162331 | G42: 0.4136856648 | H42: 413.6856648 | I42: 148.8 | J42: 264.8856647
B43: 13 | C43: 414.0781658 | D43: 5.383016156 | E43: 136.9344 | F43: -131.5513838 | G43: 0.413612847 | H43: 413.612847 | I43: 148.8 | J43: 264.812847
B44: 14 | C44: 414.0423186 | D44: 5.79659246 | E44: 137.0832 | F44: -131.2866075 | G44: 0.4135397082 | H44: 413.5397082 | I44: 148.8 | J44: 264.7397082
B45: 15 | C45: 414.0063644 | D45: 6.210095465 | E45: 137.232 | F45: -131.0219045 | G45: 0.4134662486 | H45: 413.4662486 | I45: 148.8 | J45: 264.6662486
B46: 16 | C46: 413.9703032 | D46: 6.62352485 | E46: 137.3808 | F46: -130.7572751 | G46: 0.4133924679 | H46: 413.3924679 | I46: 148.8 | J46: 264.5924679
B47: 17 | C47: 413.934135 | D47: 7.036880294 | E47: 137.5296 | F47: -130.4927197 | G47: 0.4133183664 | H47: 413.3183664 | I47: 148.8 | J47: 264.5183664
B48: 18 | C48: 413.8978598 | D48: 7.450161476 | E48: 137.6784 | F48: -130.2282385 | G48: 0.4132439439 | H48: 413.2439439 | I48: 148.8 | J48: 264.4439439
B49: 19 | C49: 413.8614776 | D49: 7.863368075 | E49: 137.8272 | F49: -129.9638319 | G49: 0.4131692005 | H49: 413.1692005 | I49: 148.8 | J49: 264.3692005
B50: 20 | C50: 413.8249885 | D50: 8.27649977 | E50: 137.976 | F50: -129.6995002 | G50: 0.4130941361 | H50: 413.0941361 | I50: 148.8 | J50: 264.2941361
B51: 21 | C51: 413.7883924 | D51: 8.68955624 | E51: 138.1248 | F51: -129.4352438 | G51: 0.4130187508 | H51: 413.0187508 | I51: 148.8 | J51: 264.2187508
B52: 22 | C52: 413.7516893 | D52: 9.102537165 | E52: 138.2736 | F52: -129.1710628 | G52: 0.4129430445 | H52: 412.9430445 | I52: 148.8 | J52: 264.1430445
B53: 23 | C53: 413.7148792 | D53: 9.515442223 | E53: 138.4224 | F53: -128.9069578 | G53: 0.4128670174 | H53: 412.8670174 | I53: 148.8 | J53: 264.0670174
B54: 24 | C54: 413.6779622 | D54: 9.928271093 | E54: 138.5712 | F54: -128.6429289 | G54: 0.4127906692 | H54: 412.7906692 | I54: 148.8 | J54: 263.9906692
B55: 25 | C55: 413.6409382 | D55: 10.34102345 | E55: 138.72 | F55: -128.3789765 | G55: 0.4127140002 | H55: 412.7140002 | I55: 148.8 | J55: 263.9140002
B56: 26 | C56: 413.6038071 | D56: 10.75369899 | E56: 138.8688 | F56: -128.115101 | G56: 0.4126370101 | H56: 412.6370101 | I56: 148.8 | J56: 263.8370101
B57: 27 | C57: 413.5665692 | D57: 11.16629737 | E57: 139.0176 | F57: -127.8513026 | G57: 0.4125596992 | H57: 412.5596992 | I57: 148.8 | J57: 263.7596992
B58: 28 | C58: 413.5292242 | D58: 11.57881828 | E58: 139.1664 | F58: -127.5875817 | G58: 0.4124820673 | H58: 412.4820673 | I58: 148.8 | J58: 263.6820673
B59: 29 | C59: 413.4917722 | D59: 11.99126139 | E59: 139.3152 | F59: -127.3239386 | G59: 0.4124041145 | H59: 412.4041145 | I59: 148.8 | J59: 263.6041145
B60: 30 | C60: 413.4542133 | D60: 12.4036264 | E60: 139.464 | F60: -127.0603736 | G60: 0.4123258407 | H60: 412.3258407 | I60: 148.8 | J60: 263.5258407
B61: 31 | C61: 413.4165474 | D61: 12.81591297 | E61: 139.6128 | F61: -126.796887 | G61: 0.412247246 | H61: 412.247246 | I61: 148.8 | J61: 263.447246
B62: 32 | C62: 413.3787745 | D62: 13.22812078 | E62: 139.7616 | F62: -126.5334792 | G62: 0.4121683304 | H62: 412.1683304 | I62: 148.8 | J62: 263.3683304
B63: 33 | C63: 413.3408946 | D63: 13.64024952 | E63: 139.9104 | F63: -126.2701505 | G63: 0.4120890938 | H63: 412.0890938 | I63: 148.8 | J63: 263.2890938
B64: 34 | C64: 413.3029078 | D64: 14.05229886 | E64: 140.0592 | F64: -126.0069011 | G64: 0.4120095362 | H64: 412.0095362 | I64: 148.8 | J64: 263.2095362
B65: 35 | C65: 413.264814 | D65: 14.46426849 | E65: 140.208 | F65: -125.7437315 | G65: 0.4119296578 | H65: 411.9296578 | I65: 148.8 | J65: 263.1296578
B66: 36 | C66: 413.2266131 | D66: 14.87615807 | E66: 140.3568 | F66: -125.4806419 | G66: 0.4118494583 | H66: 411.8494583 | I66: 148.8 | J66: 263.0494583
B67: 37 | C67: 413.1883054 | D67: 15.2879673 | E67: 140.5056 | F67: -125.2176327 | G67: 0.411768938 | H67: 411.768938 | I67: 148.8 | J67: 262.968938
B68: 38 | C68: 413.1498906 | D68: 15.69969584 | E68: 140.6544 | F68: -124.9547042 | G68: 0.4116880967 | H68: 411.6880967 | I68: 148.8 | J68: 262.8880967
B69: 39 | C69: 413.1113688 | D69: 16.11134338 | E69: 140.8032 | F69: -124.6918566 | G69: 0.4116069345 | H69: 411.6069345 | I69: 148.8 | J69: 262.8069345
B70: 40 | C70: 413.0727401 | D70: 16.5229096 | E70: 140.952 | F70: -124.4290904 | G70: 0.4115254513 | H70: 411.5254513 | I70: 148.8 | J70: 262.7254513
B71: 41 | C71: 413.0340044 | D71: 16.93439418 | E71: 141.1008 | F71: -124.1664058 | G71: 0.4114436472 | H71: 411.4436472 | I71: 148.8 | J71: 262.6436472
B72: 42 | C72: 412.9951617 | D72: 17.34579679 | E72: 141.2496 | F72: -123.9038032 | G72: 0.4113615221 | H72: 411.3615221 | I72: 148.8 | J72: 262.5615221
B73: 43 | C73: 412.956212 | D73: 17.75711712 | E73: 141.3984 | F73: -123.6412829 | G73: 0.4112790762 | H73: 411.2790762 | I73: 148.8 | J73: 262.4790762
B74: 44 | C74: 412.9171554 | D74: 18.16835484 | E74: 141.5472 | F74: -123.3788452 | G74: 0.4111963092 | H74: 411.1963092 | I74: 148.8 | J74: 262.3963092
B75: 45 | C75: 412.8779918 | D75: 18.57950963 | E75: 141.696 | F75: -123.1164904 | G75: 0.4111132214 | H75: 411.1132214 | I75: 148.8 | J75: 262.3132214
B76: 46 | C76: 412.8387211 | D76: 18.99058117 | E76: 141.8448 | F76: -122.8542188 | G76: 0.4110298125 | H76: 411.0298125 | I76: 148.8 | J76: 262.2298125
B77: 47 | C77: 412.7993436 | D77: 19.40156915 | E77: 141.9936 | F77: -122.5920309 | G77: 0.4109460828 | H77: 410.9460828 | I77: 148.8 | J77: 262.1460828
B78: 48 | C78: 412.759859 | D78: 19.81247323 | E78: 142.1424 | F78: -122.3299268 | G78: 0.4108620321 | H78: 410.8620321 | I78: 148.8 | J78: 262.0620321
B79: 49 | C79: 412.7202674 | D79: 20.2232931 | E79: 142.2912 | F79: -122.0679069 | G79: 0.4107776605 | H79: 410.7776605 | I79: 148.8 | J79: 261.9776605
B80: 50 | C80: 412.6805689 | D80: 20.63402845 | E80: 142.44 | F80: -121.8059716 | G80: 0.4106929679 | H80: 410.6929679 | I80: 148.8 | J80: 261.8929679
B81: 51 | C81: 412.6407634 | D81: 21.04467893 | E81: 142.5888 | F81: -121.5441211 | G81: 0.4106079544 | H81: 410.6079544 | I81: 148.8 | J81: 261.8079544
B82: 52 | C82: 412.6008509 | D82: 21.45524425 | E82: 142.7376 | F82: -121.2823558 | G82: 0.41052262 | H82: 410.5226199 | I82: 148.8 | J82: 261.7226199
B83: 53 | C83: 412.5608314 | D83: 21.86572407 | E83: 142.8864 | F83: -121.0206759 | G83: 0.4104369646 | H83: 410.4369646 | I83: 148.8 | J83: 261.6369646
B84: 54 | C84: 412.520705 | D84: 22.27611807 | E84: 143.0352 | F84: -120.7590819 | G84: 0.4103509882 | H84: 410.3509882 | I84: 148.8 | J84: 261.5509882
B85: 55 | C85: 412.4804716 | D85: 22.68642594 | E85: 143.184 | F85: -120.4975741 | G85: 0.410264691 | H85: 410.264691 | I85: 148.8 | J85: 261.464691
B86: 56 | C86: 412.4401312 | D86: 23.09664734 | E86: 143.3328 | F86: -120.2361527 | G86: 0.4101780728 | H86: 410.1780728 | I86: 148.8 | J86: 261.3780728
B87: 57 | C87: 412.3996838 | D87: 23.50678197 | E87: 143.4816 | F87: -119.974818 | G87: 0.4100911336 | H87: 410.0911336 | I87: 148.8 | J87: 261.2911336
B88: 58 | C88: 412.3591294 | D88: 23.9168295 | E88: 143.6304 | F88: -119.7135705 | G88: 0.4100038735 | H88: 410.0038735 | I88: 148.8 | J88: 261.2038735
B89: 59 | C89: 412.318468 | D89: 24.32678961 | E89: 143.7792 | F89: -119.4524104 | G89: 0.4099162925 | H89: 409.9162925 | I89: 148.8 | J89: 261.1162925
B90: 60 | C90: 412.2776997 | D90: 24.73666198 | E90: 143.928 | F90: -119.191338 | G90: 0.4098283905 | H90: 409.8283905 | I90: 148.8 | J90: 261.0283905
B91: 61 | C91: 412.2368244 | D91: 25.14644629 | E91: 144.0768 | F91: -118.9303537 | G91: 0.4097401676 | H91: 409.7401676 | I91: 148.8 | J91: 260.9401676
B92: 62 | C92: 412.1958421 | D92: 25.55614221 | E92: 144.2256 | F92: -118.6694578 | G92: 0.4096516237 | H92: 409.6516237 | I92: 148.8 | J92: 260.8516237
B93: 63 | C93: 412.1547528 | D93: 25.96574943 | E93: 144.3744 | F93: -118.4086506 | G93: 0.409562759 | H93: 409.562759 | I93: 148.8 | J93: 260.762759
B94: 64 | C94: 412.1135566 | D94: 26.37526762 | E94: 144.5232 | F94: -118.1479324 | G94: 0.4094735732 | H94: 409.4735732 | I94: 148.8 | J94: 260.6735732
B95: 65 | C95: =$C$25*B95^2+$C$26*B95+$C$27 -> 412.0722534 | D95: =B95*C95/1000 -> 26.78469647 | E95: =COST(B95,$E$16,$E$20,$E$21,$D$20,$D$21,$D$22) -> 144.672 | F95: =D95-E95 -> -117.8873035 | G95: =($C$25*(3*B95^2)+$C$26*(2*B95)+$C$27)/1000 -> 0.4093840666 | H95: =1000*G95 -> 409.3840666 | I95: =IF(B95<$E$20,$D$20,IF(B95<$E$22,$D$21,$D$22)) -> 148.8 | J95: =H95-I95 -> 260.5840666
B96: 66 | C96: 412.0308432 | D96: 27.19403565 | E96: 144.8208 | F96: -117.6267644 | G96: 0.4092942389 | H96: 409.2942389 | I96: 148.8 | J96: 260.4942389
B97: 67 | C97: 411.989326 | D97: 27.60328484 | E97: 144.9696 | F97: -117.3663152 | G97: 0.4092040904 | H97: 409.2040904 | I97: 148.8 | J97: 260.4040904
B98: 68 | C98: 411.9477018 | D98: 28.01244372 | E98: 145.1184 | F98: -117.1059563 | G98: 0.4091136209 | H98: 409.1136209 | I98: 148.8 | J98: 260.3136209
B99: 69 | C99: 411.9059706 | D99: 28.42151197 | E99: 145.2672 | F99: -116.845688 | G99: 0.4090228305 | H99: 409.0228305 | I99: 148.8 | J99: 260.2228305
B100: 70 | C100: 411.8641325 | D100: 28.83048928 | E100: 145.416 | F100: -116.5855107 | G100: 0.4089317191 | H100: 408.9317191 | I100: 148.8 | J100: 260.1317191
B101: 71 | C101: 411.8221874 | D101: 29.23937531 | E101: 145.5648 | F101: -116.3254247 | G101: 0.4088402868 | H101: 408.8402868 | I101: 148.8 | J101: 260.0402868
B102: 72 | C102: 411.7801353 | D102: 29.64816974 | E102: 145.7136 | F102: -116.0654303 | G102: 0.4087485336 | H102: 408.7485335 | I102: 148.8 | J102: 259.9485335
B103: 73 | C103: 411.7379762 | D103: 30.05687227 | E103: 145.8624 | F103: -115.8055277 | G103: 0.4086564594 | H103: 408.6564594 | I103: 148.8 | J103: 259.8564594
B104: 74 | C104: 411.6957102 | D104: 30.46548255 | E104: 146.0112 | F104: -115.5457174 | G104: 0.4085640642 | H104: 408.5640642 | I104: 148.8 | J104: 259.7640642
B105: 75 | C105: 411.6533372 | D105: 30.87400029 | E105: 146.16 | F105: -115.2859997 | G105: 0.4084713482 | H105: 408.4713482 | I105: 148.8 | J105: 259.6713482
B106: 76 | C106: 411.6108572 | D106: 31.28242514 | E106: 146.3088 | F106: -115.0263749 | G106: 0.4083783112 | H106: 408.3783112 | I106: 148.8 | J106: 259.5783111
B107: 77 | C107: 411.5682702 | D107: 31.6907568 | E107: 146.4576 | F107: -114.7668432 | G107: 0.4082849532 | H107: 408.2849532 | I107: 148.8 | J107: 259.4849532
B108: 78 | C108: 411.5255762 | D108: 32.09899494 | E108: 146.6064 | F108: -114.5074051 | G108: 0.4081912743 | H108: 408.1912743 | I108: 148.8 | J108: 259.3912743
B109: 79 | C109: 411.4827752 | D109: 32.50713924 | E109: 146.7552 | F109: -114.2480608 | G109: 0.4080972745 | H109: 408.0972745 | I109: 148.8 | J109: 259.2972745
B110: 80 | C110: 411.4398673 | D110: 32.91518938 | E110: 146.904 | F110: -113.9888106 | G110: 0.4080029537 | H110: 408.0029537 | I110: 148.8 | J110: 259.2029537
B111: 81 | C111: 411.3968524 | D111: 33.32314504 | E111: 147.0528 | F111: -113.729655 | G111: 0.407908312 | H111: 407.908312 | I111: 148.8 | J111: 259.108312
B112: 82 | C112: 411.3537305 | D112: 33.7310059 | E112: 147.2016 | F112: -113.4705941 | G112: 0.4078133494 | H112: 407.8133494 | I112: 148.8 | J112: 259.0133493
B113: 83 | C113: 411.3105016 | D113: 34.13877164 | E113: 147.3504 | F113: -113.2116284 | G113: 0.4077180658 | H113: 407.7180658 | I113: 148.8 | J113: 258.9180658
B114: 84 | C114: 411.2671658 | D114: 34.54644193 | E114: 147.4992 | F114: -112.9527581 | G114: 0.4076224612 | H114: 407.6224612 | I114: 148.8 | J114: 258.8224612
B115: 85 | C115: 411.223723 | D115: 34.95401645 | E115: 147.648 | F115: -112.6939835 | G115: 0.4075265358 | H115: 407.5265358 | I115: 148.8 | J115: 258.7265358
B116: 86 | C116: 411.1801731 | D116: 35.36149489 | E116: 147.7968 | F116: -112.4353051 | G116: 0.4074302894 | H116: 407.4302894 | I116: 148.8 | J116: 258.6302893
B117: 87 | C117: 411.1365164 | D117: 35.76887692 | E117: 147.9456 | F117: -112.1767231 | G117: 0.407333722 | H117: 407.333722 | I117: 148.8 | J117: 258.533722
B118: 88 | C118: 411.0927526 | D118: 36.17616223 | E118: 148.0944 | F118: -111.9182378 | G118: 0.4072368337 | H118: 407.2368337 | I118: 148.8 | J118: 258.4368337
B119: 89 | C119: 411.0488818 | D119: 36.58335048 | E119: 148.2432 | F119: -111.6598495 | G119: 0.4071396245 | H119: 407.1396245 | I119: 148.8 | J119: 258.3396245
B120: 90 | C120: 411.0049041 | D120: 36.99044137 | E120: 148.392 | F120: -111.4015586 | G120: 0.4070420943 | H120: 407.0420943 | I120: 148.8 | J120: 258.2420943
B121: 91 | C121: 410.9608194 | D121: 37.39743457 | E121: 148.5408 | F121: -111.1433654 | G121: 0.4069442432 | H121: 406.9442432 | I121: 148.8 | J121: 258.1442432
B122: 92 | C122: 410.9166277 | D122: 37.80432975 | E122: 148.6896 | F122: -110.8852703 | G122: 0.4068460711 | H122: 406.8460712 | I122: 148.8 | J122: 258.0460711
B123: 93 | C123: 410.872329 | D123: 38.2111266 | E123: 148.8384 | F123: -110.6272734 | G123: 0.4067475782 | H123: 406.7475782 | I123: 148.8 | J123: 257.9475782
B124: 94 | C124: 410.8279234 | D124: 38.6178248 | E124: 148.9872 | F124: -110.3693752 | G124: 0.4066487642 | H124: 406.6487642 | I124: 148.8 | J124: 257.8487642
B125: 95 | C125: 410.7834108 | D125: 39.02442402 | E125: 149.136 | F125: -110.111576 | G125: 0.4065496294 | H125: 406.5496294 | I125: 148.8 | J125: 257.7496294
B126: 96 | C126: 410.7387911 | D126: 39.43092395 | E126: 149.2848 | F126: -109.853876 | G126: 0.4064501736 | H126: 406.4501735 | I126: 148.8 | J126: 257.6501735
B127: 97 | C127: 410.6940646 | D127: 39.83732426 | E127: 149.4336 | F127: -109.5962757 | G127: 0.4063503968 | H127: 406.3503968 | I127: 148.8 | J127: 257.5503968
B128: 98 | C128: 410.649231 | D128: 40.24362464 | E128: 149.5824 | F128: -109.3387754 | G128: 0.4062502991 | H128: 406.2502991 | I128: 148.8 | J128: 257.4502991
B129: 99 | C129: 410.6042904 | D129: 40.64982475 | E129: 149.7312 | F129: -109.0813752 | G129: 0.4061498805 | H129: 406.1498805 | I129: 148.8 | J129: 257.3498805
B130: 100 | C130: 410.5592429 | D130: 41.05592429 | E130: 149.88 | F130: -108.8240757 | G130: 0.4060491409 | H130: 406.0491409 | I130: 148.8 | J130: 257.2491409
B131: 101 | C131: 410.5140884 | D131: 41.46192293 | E131: 150.0288 | F131: -108.5668771 | G131: 0.4059480804 | H131: 405.9480804 | I131: 148.8 | J131: 257.1480804
B132: 102 | C132: 410.4688269 | D132: 41.86782034 | E132: 150.1776 | F132: -108.3097797 | G132: 0.405846699 | H132: 405.846699 | I132: 148.8 | J132: 257.046699
B133: 103 | C133: 410.4234584 | D133: 42.27361622 | E133: 150.3264 | F133: -108.0527838 | G133: 0.4057449966 | H133: 405.7449966 | I133: 148.8 | J133: 256.9449966
B134: 104 | C134: 410.377983 | D134: 42.67931023 | E134: 150.4752 | F134: -107.7958898 | G134: 0.4056429732 | H134: 405.6429732 | I134: 148.8 | J134: 256.8429732
B135: 105 | C135: 410.3324006 | D135: 43.08490206 | E135: 150.624 | F135: -107.5390979 | G135: 0.405540629 | H135: 405.540629 | I135: 148.8 | J135: 256.740629
B136: 106 | C136: 410.2867111 | D136: 43.49039138 | E136: 150.7728 | F136: -107.2824086 | G136: 0.4054379638 | H136: 405.4379637 | I136: 148.8 | J136: 256.6379637
B137: 107 | C137: 410.2409148 | D137: 43.89577788 | E137: 150.9216 | F137: -107.0258221 | G137: 0.4053349776 | H137: 405.3349776 | I137: 148.8 | J137: 256.5349776
B138: 108 | C138: 410.1950114 | D138: 44.30106123 | E138: 151.0704 | F138: -106.7693388 | G138: 0.4052316705 | H138: 405.2316705 | I138: 148.8 | J138: 256.4316705
B139: 109 | C139: 410.149001 | D139: 44.70624111 | E139: 151.2192 | F139: -106.5129589 | G139: 0.4051280425 | H139: 405.1280425 | I139: 148.8 | J139: 256.3280425
B140: 110 | C140: 410.1028837 | D140: 45.11131721 | E140: 151.368 | F140: -106.2566828 | G140: 0.4050240935 | H140: 405.0240935 | I140: 148.8 | J140: 256.2240935
B141: 111 | C141: 410.0566594 | D141: 45.51628919 | E141: 151.5168 | F141: -106.0005108 | G141: 0.4049198236 | H141: 404.9198236 | I141: 148.8 | J141: 256.1198236
B142: 112 | C142: 410.0103281 | D142: 45.92115675 | E142: 151.6656 | F142: -105.7444433 | G142: 0.4048152328 | H142: 404.8152328 | I142: 148.8 | J142: 256.0152327
B143: 113 | C143: 409.9638898 | D143: 46.32591955 | E143: 151.8144 | F143: -105.4884804 | G143: 0.404710321 | H143: 404.710321 | I143: 148.8 | J143: 255.910321
B144: 114 | C144: 409.9173446 | D144: 46.73057728 | E144: 151.9632 | F144: -105.2326227 | G144: 0.4046050882 | H144: 404.6050882 | I144: 148.8 | J144: 255.8050882
B145: 115 | C145: 409.8706924 | D145: 47.13512962 | E145: 152.112 | F145: -104.9768704 | G145: 0.4044995346 | H145: 404.4995346 | I145: 148.8 | J145: 255.6995346
B146: 116 | C146: 409.8239332 | D146: 47.53957625 | E146: 152.2608 | F146: -104.7212238 | G146: 0.4043936599 | H146: 404.3936599 | I146: 148.8 | J146: 255.5936599
B147: 117 | C147: 409.777067 | D147: 47.94391683 | E147: 152.4096 | F147: -104.4656832 | G147: 0.4042874644 | H147: 404.2874644 | I147: 148.8 | J147: 255.4874644
B148: 118 | C148: 409.7300938 | D148: 48.34815107 | E148: 152.5584 | F148: -104.2102489 | G148: 0.4041809479 | H148: 404.1809479 | I148: 148.8 | J148: 255.3809479
B149: 119 | C149: 409.6830136 | D149: 48.75227862 | E149: 152.7072 | F149: -103.9549214 | G149: 0.4040741105 | H149: 404.0741105 | I149: 148.8 | J149: 255.2741105
B150: 120 | C150: 409.6358265 | D150: 49.15629918 | E150: 152.856 | F150: -103.6997008 | G150: 0.4039669521 | H150: 403.9669521 | I150: 148.8 | J150: 255.1669521
B151: 121 | C151: 409.5885324 | D151: 49.56021242 | E151: 153.0048 | F151: -103.4445876 | G151: 0.4038594728 | H151: 403.8594728 | I151: 148.8 | J151: 255.0594728
B152: 122 | C152: 409.5411313 | D152: 49.96401802 | E152: 153.1536 | F152: -103.189582 | G152: 0.4037516725 | H152: 403.7516725 | I152: 148.8 | J152: 254.9516725
B153: 123 | C153: 409.4936232 | D153: 50.36771566 | E153: 153.3024 | F153: -102.9346843 | G153: 0.4036435514 | H153: 403.6435514 | I153: 148.8 | J153: 254.8435514
B154: 124 | C154: 409.4460082 | D154: 50.77130502 | E154: 153.4512 | F154: -102.679895 | G154: 0.4035351092 | H154: 403.5351092 | I154: 148.8 | J154: 254.7351092
B155: 125 | C155: 409.3982862 | D155: 51.17478577 | E155: 153.6 | F155: -102.4252142 | G155: 0.4034263462 | H155: 403.4263462 | I155: 148.8 | J155: 254.6263462
B156: 126 | C156: 409.3504572 | D156: 51.5781576 | E156: 153.7488 | F156: -102.1706424 | G156: 0.4033172621 | H156: 403.3172621 | I156: 148.8 | J156: 254.5172621
B157: 127 | C157: 409.3025212 | D157: 51.98142019 | E157: 153.8976 | F157: -101.9161798 | G157: 0.4032078572 | H157: 403.2078572 | I157: 148.8 | J157: 254.4078572
B158: 128 | C158: 409.2544782 | D158: 52.38457321 | E158: 154.0464 | F158: -101.6618268 | G158: 0.4030981313 | H158: 403.0981313 | I158: 148.8 | J158: 254.2981313
B159: 129 | C159: =$C$25*B159^2+$C$26*B159+$C$27 -> 409.2063282 | D159: =B159*C159/1000 -> 52.78761634 | E159: =COST(B159,$E$16,$E$20,$E$21,$D$20,$D$21,$D$22) -> 154.1952 | F159: =D159-E159 -> -101.4075837 | G159: =($C$25*(3*B159^2)+$C$26*(2*B159)+$C$27)/1000 -> 0.4029880845 | H159: =1000*G159 -> 402.9880845 | I159: =IF(B159<$E$20,$D$20,IF(B159<$E$22,$D$21,$D$22)) -> 148.8 | J159: =H159-I159 -> 254.1880845
B160: 130 | C160: 409.1580713 | D160: 53.19054927 | E160: 154.344 | F160: -101.1534507 | G160: 0.4028777167 | H160: 402.8777167 | I160: 148.8 | J160: 254.0777167
B161: 131 | C161: 409.1097074 | D161: 53.59337167 | E161: 154.4928 | F161: -100.8994283 | G161: 0.402767028 | H161: 402.767028 | I161: 148.8 | J161: 253.967028
B162: 132 | C162: 409.0612365 | D162: 53.99608322 | E162: 154.6416 | F162: -100.6455168 | G162: 0.4026560184 | H162: 402.6560184 | I162: 148.8 | J162: 253.8560183
B163: 133 | C163: 409.0126586 | D163: 54.3986836 | E163: 154.7904 | F163: -100.3917164 | G163: 0.4025446878 | H163: 402.5446878 | I163: 148.8 | J163: 253.7446878
B164: 134 | C164: 408.9639738 | D164: 54.80117249 | E164: 154.9392 | F164: -100.1380275 | G164: 0.4024330362 | H164: 402.4330362 | I164: 148.8 | J164: 253.6330362
B165: 135 | C165: 408.915182 | D165: 55.20354956 | E165: 155.088 | F165: -99.88445044 | G165: 0.4023210638 | H165: 402.3210638 | I165: 148.8 | J165: 253.5210638
B166: 136 | C166: 408.8662832 | D166: 55.60581451 | E166: 155.2368 | F166: -99.63098549 | G166: 0.4022087704 | H166: 402.2087704 | I166: 148.8 | J166: 253.4087703
B167: 137 | C167: 408.8172774 | D167: 56.007967 | E167: 155.3856 | F167: -99.377633 | G167: 0.402096156 | H167: 402.096156 | I167: 148.8 | J167: 253.296156
B168: 138 | C168: 408.7681646 | D168: 56.41000671 | E168: 155.5344 | F168: -99.12439329 | G168: 0.4019832207 | H168: 401.9832207 | I168: 148.8 | J168: 253.1832207
B169: 139 | C169: 408.7189448 | D169: 56.81193333 | E169: 155.6832 | F169: -98.87126667 | G169: 0.4018699645 | H169: 401.8699645 | I169: 148.8 | J169: 253.0699645
B170: 140 | C170: 408.6696181 | D170: 57.21374654 | E170: 155.832 | F170: -98.61825346 | G170: 0.4017563873 | H170: 401.7563873 | I170: 148.8 | J170: 252.9563873
B171: 141 | C171: 408.6201844 | D171: 57.615446 | E171: 155.9808 | F171: -98.365354 | G171: 0.4016424892 | H171: 401.6424892 | I171: 148.8 | J171: 252.8424892
B172: 142 | C172: 408.5706437 | D172: 58.01703141 | E172: 156.1296 | F172: -98.11256859 | G172: 0.4015282701 | H172: 401.5282701 | I172: 148.8 | J172: 252.7282701
B173: 143 | C173: 408.520996 | D173: 58.41850243 | E173: 156.2784 | F173: -97.85989757 | G173: 0.4014137302 | H173: 401.4137302 | I173: 148.8 | J173: 252.6137302
B174: 144 | C174: 408.4712414 | D174: 58.81985876 | E174: 156.4272 | F174: -97.60734124 | G174: 0.4012988692 | H174: 401.2988692 | I174: 148.8 | J174: 252.4988692
B175: 145 | C175: 408.4213798 | D175: 59.22110007 | E175: 156.576 | F175: -97.35489993 | G175: 0.4011836874 | H175: 401.1836874 | I175: 148.8 | J175: 252.3836874
B176: 146 | C176: 408.3714111 | D176: 59.62222603 | E176: 156.7248 | F176: -97.10257397 | G176: 0.4010681846 | H176: 401.0681846 | I176: 148.8 | J176: 252.2681846
B177: 147 | C177: 408.3213356 | D177: 60.02323633 | E177: 156.8736 | F177: -96.85036367 | G177: 0.4009523608 | H177: 400.9523608 | I177: 148.8 | J177: 252.1523608
B178: 148 | C178: 408.271153 | D178: 60.42413064 | E178: 157.0224 | F178: -96.59826936 | G178: 0.4008362161 | H178: 400.8362161 | I178: 148.8 | J178: 252.0362161
B179: 149 | C179: 408.2208634 | D179: 60.82490865 | E179: 157.1712 | F179: -96.34629135 | G179: 0.4007197505 | H179: 400.7197505 | I179: 148.8 | J179: 251.9197505
B180: 150 | C180: 408.1704669 | D180: 61.22557004 | E180: 157.32 | F180: -96.09442996 | G180: 0.4006029639 | H180: 400.6029639 | I180: 148.8 | J180: 251.8029639
B181: 151 | C181: 408.1199634 | D181: 61.62611447 | E181: 157.4688 | F181: -95.84268553 | G181: 0.4004858564 | H181: 400.4858564 | I181: 148.8 | J181: 251.6858564
B182: 152 | C182: 408.0693529 | D182: 62.02654164 | E182: 157.6176 | F182: -95.59105836 | G182: 0.4003684279 | H182: 400.368428 | I182: 148.8 | J182: 251.568428
B183: 153 | C183: 408.0186354 | D183: 62.42685122 | E183: 157.7664 | F183: -95.33954878 | G183: 0.4002506786 | H183: 400.2506786 | I183: 148.8 | J183: 251.4506786
B184: 154 | C184: 407.967811 | D184: 62.82704289 | E184: 157.9152 | F184: -95.08815711 | G184: 0.4001326082 | H184: 400.1326082 | I184: 148.8 | J184: 251.3326082
B185: 155 | C185: 407.9168796 | D185: 63.22711633 | E185: 158.064 | F185: -94.83688367 | G185: 0.400014217 | H185: 400.014217 | I185: 148.8 | J185: 251.214217
B186: 156 | C186: 407.8658411 | D186: 63.62707122 | E186: 158.2128 | F186: -94.58572878 | G186: 0.3998955047 | H186: 399.8955047 | I186: 148.8 | J186: 251.0955047
B187: 157 | C187: 407.8146958 | D187: 64.02690723 | E187: 158.3616 | F187: -94.33469277 | G187: 0.3997764716 | H187: 399.7764716 | I187: 148.8 | J187: 250.9764716
B188: 158 | C188: 407.7634434 | D188: 64.42662406 | E188: 158.5104 | F188: -94.08377594 | G188: 0.3996571175 | H188: 399.6571175 | I188: 148.8 | J188: 250.8571175
B189: 159 | C189: 407.712084 | D189: 64.82622136 | E189: 158.6592 | F189: -93.83297864 | G189: 0.3995374425 | H189: 399.5374425 | I189: 148.8 | J189: 250.7374425
B190: 160 | C190: 407.6606177 | D190: 65.22569883 | E190: 158.808 | F190: -93.58230117 | G190: 0.3994174465 | H190: 399.4174465 | I190: 148.8 | J190: 250.6174465
B191: 161 | C191: 407.6090444 | D191: 65.62505615 | E191: 158.9568 | F191: -93.33174385 | G191: 0.3992971296 | H191: 399.2971296 | I191: 148.8 | J191: 250.4971296
B192: 162 | C192: 407.5573641 | D192: 66.02429299 | E192: 159.1056 | F192: -93.08130701 | G192: 0.3991764917 | H192: 399.1764917 | I192: 148.8 | J192: 250.3764917
B193: 163 | C193: 407.5055768 | D193: 66.42340902 | E193: 159.2544 | F193: -92.83099098 | G193: 0.399055533 | H193: 399.055533 | I193: 148.8 | J193: 250.255533
B194: 164 | C194: 407.4536826 | D194: 66.82240394 | E194: 159.4032 | F194: -92.58079606 | G194: 0.3989342532 | H194: 398.9342532 | I194: 148.8 | J194: 250.1342532
B195: 165 | C195: 407.4016814 | D195: 67.22127742 | E195: 159.552 | F195: -92.33072258 | G195: 0.3988126526 | H195: 398.8126526 | I195: 148.8 | J195: 250.0126526
B196: 166 | C196: 407.3495731 | D196: 67.62002914 | E196: 159.7008 | F196: -92.08077086 | G196: 0.3986907309 | H196: 398.6907309 | I196: 148.8 | J196: 249.8907309
B197: 167 | C197: 407.297358 | D197: 68.01865878 | E197: 159.8496 | F197: -91.83094122 | G197: 0.3985684884 | H197: 398.5684884 | I197: 148.8 | J197: 249.7684884
B198: 168 | C198: 407.2450358 | D198: 68.41716601 | E198: 159.9984 | F198: -91.58123399 | G198: 0.3984459249 | H198: 398.4459249 | I198: 148.8 | J198: 249.6459249
B199: 169 | C199: 407.1926066 | D199: 68.81555052 | E199: 160.1472 | F199: -91.33164948 | G199: 0.3983230405 | H199: 398.3230405 | I199: 148.8 | J199: 249.5230405
B200: 170 | C200: 407.1400705 | D200: 69.21381199 | E200: 160.296 | F200: -91.08218801 | G200: 0.3981998351 | H200: 398.1998351 | I200: 148.8 | J200: 249.3998351
B201: 171 | C201: 407.0874274 | D201: 69.61195009 | E201: 160.4448 | F201: -90.83284991 | G201: 0.3980763088 | H201: 398.0763088 | I201: 148.8 | J201: 249.2763088
B202: 172 | C202: 407.0346773 | D202: 70.0099645 | E202: 160.5936 | F202: -90.5836355 | G202: 0.3979524616 | H202: 397.9524616 | I202: 148.8 | J202: 249.1524615
B203: 173 | C203: 406.9818202 | D203: 70.4078549 | E203: 160.7424 | F203: -90.3345451 | G203: 0.3978282934 | H203: 397.8282934 | I203: 148.8 | J203: 249.0282934
B204: 174 | C204: 406.9288562 | D204: 70.80562098 | E204: 160.8912 | F204: -90.08557902 | G204: 0.3977038042 | H204: 397.7038042 | I204: 148.8 | J204: 248.9038042
B205: 175 | C205: 406.8757852 | D205: 71.2032624 | E205: 161.04 | F205: -89.8367376 | G205: 0.3975789942 | H205: 397.5789942 | I205: 148.8 | J205: 248.7789942
B206: 176 | C206: 406.8226072 | D206: 71.60077886 | E206: 161.1888 | F206: -89.58802114 | G206: 0.3974538631 | H206: 397.4538631 | I206: 148.8 | J206: 248.6538631
B207: 177 | C207: 406.7693222 | D207: 71.99817002 | E207: 161.3376 | F207: -89.33942998 | G207: 0.3973284112 | H207: 397.3284112 | I207: 148.8 | J207: 248.5284112
... 2831 more rows

Sheet Q7-8
B5: Potential national market: | D5: 350000000
B7: Test Markets | F7: increase demand by 10%
B8: Market Number | C8: Market Size | D8: Price | E8: Projected Yearly Sales (number of drives) | F8: Projected Yearly Sales (in K's) in National Mkt
B9: 1 | C9: 144900 | D9: 265.95 | E9: 570 | F9: =((E9/C9)*$D$5/1000)*1.1 -> 1514.492754
B10: 2 | C10: 4627600 | D10: 276.95 | E10: 17178 | F10: =((E10/C10)*$D$5/1000)*1.1 -> 1429.149019
B11: 3 | C11: 1049800 | D11: 287.95 | E11: 3801 | F11: 1393.965517
B12: 4 | C12: 2946500 | D12: 299.95 | E12: 9941 | F12: 1298.925844
B13: 5 | C13: 5042300 | D13: 310.95 | E13: 15594 | F13: 1190.664974
B14: 6 | C14: 3617600 | D14: 321.95 | E14: 10859 | F14: 1155.65983
D15: y-values
B16: Fixed Cost For The Year: | D16: 135000000 | E16: 135
B18: Variable Costs
B19: Quantity | D19: Cost per drive
B20: First: | C20: 800000 | D20: 160 | E20: 800 | F20: Batch size1
B21: Next: | C21: 400000 | D21: 128 | E21: 400 | F21: Batch size2
B22: Further: | D22: 72 | E22: 1200 | F22: sum of batch size 1&2
B24: coefficients of the quadratic function-8 decimal places(For Q7-8) | E24: h used for the difference quotient
B25: a | C25: -4.42e-05 | E25: 1e-06
B26: b | C26: -0.03127547
B27: c | C27: 414.5344449 | G27: derivative = a*3*q^2+b*2*q+c
B28: select q to include the x-intercept of D(q) | C28: use equation obtained from fitting a quadratic trend line(use a,b,c) | E28: user defined COST function | G28: using derivative of aq^3+bq^2+cq | H28: using MR(q)=1000*R'(q) | I28: using nested IF function | J28: using MR(q)-MC(q)
B29: q | C29: D(q) | D29: R(q) | E29: C(q) | F29: P(q) | G29: R'(q) | H29: MR(q) | I29: MC(q) | J29: MP(q)
B30: 0 | C30: =$C$25*B30^2+$C$26*B30+$C$27 -> 414.5344449 | D30: =B30*C30/1000 -> 0 | E30: =COST(B30,$E$16,$E$20,$E$21,$D$20,$D$21,$D$22) -> 135 | F30: =D30-E30 -> -135 | G30: =($C$25*(3*B30^2)+$C$26*(2*B30)+$C$27)/1000 -> 0.4145344449 | H30: =1000*G30 -> 414.5344449 | I30: =IF(B30<$E$20,$D$20,IF(B30<$E$22,$D$21,$D$22)) -> 160 | J30: =H30-I30 -> 254.5344449
B31: 1 | C31: =$C$25*B31^2+$C$26*B31+$C$27 -> 414.5031252 | D31: =B31*C31/1000 -> 0.4145031252 | E31: =COST(B31,$E$16,$E$20,$E$21,$D$20,$D$21,$D$22) -> 135.16 | F31: =D31-E31 -> -134.7454969 | G31: =($C$25*(3*B31^2)+$C$26*(2*B31)+$C$27)/1000 -> 0.4144717614 | H31: =1000*G31 -> 414.4717614 | I31: =IF(B31<$E$20,$D$20,IF(B31<$E$22,$D$21,$D$22)) -> 160 | J31: =H31-I31 -> 254.4717614
B32: 2 | C32: 414.4717172 | D32: 0.8289434343 | E32: 135.32 | F32: -134.4910566 | G32: 0.4144088126 | H32: 414.4088126 | I32: 160 | J32: 254.4088126
B33: 3 | C33: 414.4402207 | D33: 1.243320662 | E33: 135.48 | F33: -134.2366793 | G33: 0.4143455987 | H33: 414.3455987 | I33: 160 | J33: 254.3455987
B34: 4 | C34: 414.4086358 | D34: 1.657634543 | E34: 135.64 | F34: -133.9823655 | G34: 0.4142821195 | H34: 414.2821196 | I34: 160 | J34: 254.2821196
B35: 5 | C35: 414.3769626 | D35: 2.071884813 | E35: 135.8 | F35: -133.7281152 | G35: 0.4142183752 | H35: 414.2183752 | I35: 160 | J35: 254.2183752
B36: 6 | C36: 414.3452009 | D36: 2.486071205 | E36: 135.96 | F36: -133.4739288 | G36: 0.4141543657 | H36: 414.1543657 | I36: 160 | J36: 254.1543657
B37: 7 | C37: 414.3133508 | D37: 2.900193456 | E37: 136.12 | F37: -133.2198065 | G37: 0.4140900909 | H37: 414.0900909 | I37: 160 | J37: 254.0900909
B38: 8 | C38: 414.2814123 | D38: 3.314251299 | E38: 136.28 | F38: -132.9657487 | G38: 0.414025551 | H38: 414.025551 | I38: 160 | J38: 254.025551
B39: 9 | C39: 414.2493855 | D39: 3.728244469 | E39: 136.44 | F39: -132.7117555 | G39: 0.4139607458 | H39: 413.9607458 | I39: 160 | J39: 253.9607458
B40: 10 | C40: 414.2172702 | D40: 4.142172702 | E40: 136.6 | F40: -132.4578273 | G40: 0.4138956755 | H40: 413.8956755 | I40: 160 | J40: 253.8956755
B41: 11 | C41: 414.1850665 | D41: 4.556035732 | E41: 136.76 | F41: -132.2039643 | G41: 0.41383034 | H41: 413.83034 | I41: 160 | J41: 253.83034
B42: 12 | C42: 414.1527745 | D42: 4.969833294 | E42: 136.92 | F42: -131.9501667 | G42: 0.4137647392 | H42: 413.7647392 | I42: 160 | J42: 253.7647392
B43: 13 | C43: 414.120394 | D43: 5.383565122 | E43: 137.08 | F43: -131.6964349 | G43: 0.4136988733 | H43: 413.6988733 | I43: 160 | J43: 253.6988733
B44: 14 | C44: 414.0879251 | D44: 5.797230952 | E44: 137.24 | F44: -131.442769 | G44: 0.4136327422 | H44: 413.6327422 | I44: 160 | J44: 253.6327422
B45: 15 | C45: 414.0553679 | D45: 6.210830518 | E45: 137.4 | F45: -131.1891695 | G45: 0.4135663458 | H45: 413.5663458 | I45: 160 | J45: 253.5663458
B46: 16 | C46: 414.0227222 | D46: 6.624363555 | E46: 137.56 | F46: -130.9356364 | G46: 0.4134996843 | H46: 413.4996843 | I46: 160 | J46: 253.4996843
B47: 17 | C47: 413.9899881 | D47: 7.037829798 | E47: 137.72 | F47: -130.6821702 | G47: 0.4134327575 | H47: 413.4327575 | I47: 160 | J47: 253.4327575
B48: 18 | C48: 413.9571656 | D48: 7.451228982 | E48: 137.88 | F48: -130.428771 | G48: 0.4133655656 | H48: 413.3655656 | I48: 160 | J48: 253.3655656
B49: 19 | C49: 413.9242548 | D49: 7.864560841 | E49: 138.04 | F49: -130.1754392 | G49: 0.4132981084 | H49: 413.2981084 | I49: 160 | J49: 253.2981084
B50: 20 | C50: 413.8912555 | D50: 8.27782511 | E50: 138.2 | F50: -129.9221749 | G50: 0.4132303861 | H50: 413.2303861 | I50: 160 | J50: 253.2303861
B51: 21 | C51: 413.8581678 | D51: 8.691021525 | E51: 138.36 | F51: -129.6689785 | G51: 0.4131623986 | H51: 413.1623986 | I51: 160 | J51: 253.1623986
B52: 22 | C52: 413.8249918 | D52: 9.104149819 | E52: 138.52 | F52: -129.4158502 | G52: 0.4130941458 | H52: 413.0941458 | I52: 160 | J52: 253.0941458
B53: 23 | C53: 413.7917273 | D53: 9.517209728 | E53: 138.68 | F53: -129.1627903 | G53: 0.4130256279 | H53: 413.0256279 | I53: 160 | J53: 253.0256279
B54: 24 | C54: 413.7583744 | D54: 9.930200986 | E54: 138.84 | F54: -128.909799 | G54: 0.4129568447 | H54: 412.9568448 | I54: 160 | J54: 252.9568448
B55: 25 | C55: 413.7249332 | D55: 10.34312333 | E55: 139 | F55: -128.6568767 | G55: 0.4128877964 | H55: 412.8877964 | I55: 160 | J55: 252.8877964
B56: 26 | C56: 413.6914035 | D56: 10.75597649 | E56: 139.16 | F56: -128.4040235 | G56: 0.4128184829 | H56: 412.8184829 | I56: 160 | J56: 252.8184829
B57: 27 | C57: 413.6577854 | D57: 11.16876021 | E57: 139.32 | F57: -128.1512398 | G57: 0.4127489041 | H57: 412.7489041 | I57: 160 | J57: 252.7489041
B58: 28 | C58: 413.624079 | D58: 11.58147421 | E58: 139.48 | F58: -127.8985258 | G58: 0.4126790602 | H58: 412.6790602 | I58: 160 | J58: 252.6790602
B59: 29 | C59: 413.5902841 | D59: 11.99411824 | E59: 139.64 | F59: -127.6458818 | G59: 0.412608951 | H59: 412.608951 | I59: 160 | J59: 252.608951
B60: 30 | C60: 413.5564008 | D60: 12.40669202 | E60: 139.8 | F60: -127.393308 | G60: 0.4125385767 | H60: 412.5385767 | I60: 160 | J60: 252.5385767
B61: 31 | C61: 413.5224291 | D61: 12.8191953 | E61: 139.96 | F61: -127.1408047 | G61: 0.4124679372 | H61: 412.4679372 | I61: 160 | J61: 252.4679372
B62: 32 | C62: 413.4883691 | D62: 13.23162781 | E62: 140.12 | F62: -126.8883722 | G62: 0.4123970324 | H62: 412.3970324 | I62: 160 | J62: 252.3970324
B63: 33 | C63: 413.4542206 | D63: 13.64398928 | E63: 140.28 | F63: -126.6360107 | G63: 0.4123258625 | H63: 412.3258625 | I63: 160 | J63: 252.3258625
B64: 34 | C64: 413.4199837 | D64: 14.05627945 | E64: 140.44 | F64: -126.3837206 | G64: 0.4122544274 | H64: 412.2544274 | I64: 160 | J64: 252.2544274
B65: 35 | C65: 413.3856585 | D65: 14.46849805 | E65: 140.6 | F65: -126.131502 | G65: 0.412182727 | H65: 412.182727 | I65: 160 | J65: 252.182727
B66: 36 | C66: 413.3512448 | D66: 14.88064481 | E66: 140.76 | F66: -125.8793552 | G66: 0.4121107615 | H66: 412.1107615 | I66: 160 | J66: 252.1107615
B67: 37 | C67: 413.3167427 | D67: 15.29271948 | E67: 140.92 | F67: -125.6272805 | G67: 0.4120385307 | H67: 412.0385307 | I67: 160 | J67: 252.0385307
B68: 38 | C68: 413.2821522 | D68: 15.70472179 | E68: 141.08 | F68: -125.3752782 | G68: 0.4119660348 | H68: 411.9660348 | I68: 160 | J68: 251.9660348
B69: 39 | C69: 413.2474734 | D69: 16.11665146 | E69: 141.24 | F69: -125.1233485 | G69: 0.4118932736 | H69: 411.8932736 | I69: 160 | J69: 251.8932736
B70: 40 | C70: 413.2127061 | D70: 16.52850824 | E70: 141.4 | F70: -124.8714918 | G70: 0.4118202473 | H70: 411.8202473 | I70: 160 | J70: 251.8202473
B71: 41 | C71: 413.1778504 | D71: 16.94029187 | E71: 141.56 | F71: -124.6197081 | G71: 0.4117469558 | H71: 411.7469558 | I71: 160 | J71: 251.7469558
B72: 42 | C72: 413.1429064 | D72: 17.35200207 | E72: 141.72 | F72: -124.3679979 | G72: 0.411673399 | H72: 411.673399 | I72: 160 | J72: 251.673399
B73: 43 | C73: 413.1078739 | D73: 17.76363858 | E73: 141.88 | F73: -124.1163614 | G73: 0.4115995771 | H73: 411.5995771 | I73: 160 | J73: 251.5995771
B74: 44 | C74: 413.072753 | D74: 18.17520113 | E74: 142.04 | F74: -123.8647989 | G74: 0.4115254899 | H74: 411.52549 | I74: 160 | J74: 251.52549
B75: 45 | C75: 413.0375438 | D75: 18.58668947 | E75: 142.2 | F75: -123.6133105 | G75: 0.4114511376 | H75: 411.4511376 | I75: 160 | J75: 251.4511376
B76: 46 | C76: 413.0022461 | D76: 18.99810332 | E76: 142.36 | F76: -123.3618967 | G76: 0.4113765201 | H76: 411.3765201 | I76: 160 | J76: 251.3765201
B77: 47 | C77: 412.96686 | D77: 19.40944242 | E77: 142.52 | F77: -123.1105576 | G77: 0.4113016373 | H77: 411.3016373 | I77: 160 | J77: 251.3016373
B78: 48 | C78: 412.9313856 | D78: 19.82070651 | E78: 142.68 | F78: -122.8592935 | G78: 0.4112264894 | H78: 411.2264894 | I78: 160 | J78: 251.2264894
B79: 49 | C79: 412.8958227 | D79: 20.23189531 | E79: 142.84 | F79: -122.6081047 | G79: 0.4111510763 | H79: 411.1510763 | I79: 160 | J79: 251.1510763
B80: 50 | C80: 412.8601714 | D80: 20.64300857 | E80: 143 | F80: -122.3569914 | G80: 0.4110753979 | H80: 411.0753979 | I80: 160 | J80: 251.0753979
B81: 51 | C81: 412.8244317 | D81: 21.05404602 | E81: 143.16 | F81: -122.105954 | G81: 0.4109994544 | H81: 410.9994544 | I81: 160 | J81: 250.9994544
B82: 52 | C82: 412.7886037 | D82: 21.46500739 | E82: 143.32 | F82: -121.8549926 | G82: 0.4109232456 | H82: 410.9232456 | I82: 160 | J82: 250.9232456
B83: 53 | C83: 412.7526872 | D83: 21.87589242 | E83: 143.48 | F83: -121.6041076 | G83: 0.4108467717 | H83: 410.8467717 | I83: 160 | J83: 250.8467717
B84: 54 | C84: 412.7166823 | D84: 22.28670085 | E84: 143.64 | F84: -121.3532992 | G84: 0.4107700325 | H84: 410.7700325 | I84: 160 | J84: 250.7700325
B85: 55 | C85: 412.6805891 | D85: 22.6974324 | E85: 143.8 | F85: -121.1025676 | G85: 0.4106930282 | H85: 410.6930282 | I85: 160 | J85: 250.6930282
B86: 56 | C86: 412.6444074 | D86: 23.10808681 | E86: 143.96 | F86: -120.8519132 | G86: 0.4106157587 | H86: 410.6157587 | I86: 160 | J86: 250.6157587
B87: 57 | C87: 412.6081373 | D87: 23.51866383 | E87: 144.12 | F87: -120.6013362 | G87: 0.4105382239 | H87: 410.5382239 | I87: 160 | J87: 250.5382239
B88: 58 | C88: 412.5717788 | D88: 23.92916317 | E88: 144.28 | F88: -120.3508368 | G88: 0.410460424 | H88: 410.460424 | I88: 160 | J88: 250.460424
B89: 59 | C89: 412.535332 | D89: 24.33958459 | E89: 144.44 | F89: -120.1004154 | G89: 0.4103823589 | H89: 410.3823589 | I89: 160 | J89: 250.3823589
B90: 60 | C90: 412.4987967 | D90: 24.7499278 | E90: 144.6 | F90: -119.8500722 | G90: 0.4103040285 | H90: 410.3040285 | I90: 160 | J90: 250.3040285
B91: 61 | C91: 412.462173 | D91: 25.16019256 | E91: 144.76 | F91: -119.5998074 | G91: 0.410225433 | H91: 410.225433 | I91: 160 | J91: 250.225433
B92: 62 | C92: 412.425461 | D92: 25.57037858 | E92: 144.92 | F92: -119.3496214 | G92: 0.4101465722 | H92: 410.1465722 | I92: 160 | J92: 250.1465722
B93: 63 | C93: 412.3886605 | D93: 25.98048561 | E93: 145.08 | F93: -119.0995144 | G93: 0.4100674463 | H93: 410.0674463 | I93: 160 | J93: 250.0674463
B94: 64 | C94: 412.3517716 | D94: 26.39051338 | E94: 145.24 | F94: -118.8494866 | G94: 0.4099880551 | H94: 409.9880551 | I94: 160 | J94: 249.9880551
B95: 65 | C95: =$C$25*B95^2+$C$26*B95+$C$27 -> 412.3147944 | D95: =B95*C95/1000 -> 26.80046163 | E95: =COST(B95,$E$16,$E$20,$E$21,$D$20,$D$21,$D$22) -> 145.4 | F95: =D95-E95 -> -118.5995384 | G95: =($C$25*(3*B95^2)+$C$26*(2*B95)+$C$27)/1000 -> 0.4099083988 | H95: =1000*G95 -> 409.9083988 | I95: =IF(B95<$E$20,$D$20,IF(B95<$E$22,$D$21,$D$22)) -> 160 | J95: =H95-I95 -> 249.9083988
B96: 66 | C96: 412.2777287 | D96: 27.21033009 | E96: 145.56 | F96: -118.3496699 | G96: 0.4098284773 | H96: 409.8284773 | I96: 160 | J96: 249.8284773
B97: 67 | C97: 412.2405746 | D97: 27.6201185 | E97: 145.72 | F97: -118.0998815 | G97: 0.4097482905 | H97: 409.7482905 | I97: 160 | J97: 249.7482905
B98: 68 | C98: 412.2033321 | D98: 28.02982659 | E98: 145.88 | F98: -117.8501734 | G98: 0.4096678386 | H98: 409.6678386 | I98: 160 | J98: 249.6678386
B99: 69 | C99: 412.1660013 | D99: 28.43945409 | E99: 146.04 | F99: -117.6005459 | G99: 0.4095871214 | H99: 409.5871214 | I99: 160 | J99: 249.5871214
B100: 70 | C100: 412.128582 | D100: 28.84900074 | E100: 146.2 | F100: -117.3509993 | G100: 0.4095061391 | H100: 409.5061391 | I100: 160 | J100: 249.5061391
B101: 71 | C101: 412.0910743 | D101: 29.25846628 | E101: 146.36 | F101: -117.1015337 | G101: 0.4094248916 | H101: 409.4248916 | I101: 160 | J101: 249.4248916
B102: 72 | C102: 412.0534783 | D102: 29.66785044 | E102: 146.52 | F102: -116.8521496 | G102: 0.4093433788 | H102: 409.3433788 | I102: 160 | J102: 249.3433788
B103: 73 | C103: 412.0157938 | D103: 30.07715295 | E103: 146.68 | F103: -116.6028471 | G103: 0.4092616009 | H103: 409.2616009 | I103: 160 | J103: 249.2616009
B104: 74 | C104: 411.9780209 | D104: 30.48637355 | E104: 146.84 | F104: -116.3536265 | G104: 0.4091795578 | H104: 409.1795578 | I104: 160 | J104: 249.1795578
B105: 75 | C105: 411.9401597 | D105: 30.89551197 | E105: 147 | F105: -116.104488 | G105: 0.4090972494 | H105: 409.0972494 | I105: 160 | J105: 249.0972494
B106: 76 | C106: 411.90221 | D106: 31.30456796 | E106: 147.16 | F106: -115.855432 | G106: 0.4090146759 | H106: 409.0146759 | I106: 160 | J106: 249.0146759
B107: 77 | C107: 411.8641719 | D107: 31.71354124 | E107: 147.32 | F107: -115.6064588 | G107: 0.4089318371 | H107: 408.9318371 | I107: 160 | J107: 248.9318371
B108: 78 | C108: 411.8260454 | D108: 32.12243155 | E108: 147.48 | F108: -115.3575685 | G108: 0.4088487332 | H108: 408.8487332 | I108: 160 | J108: 248.8487332
B109: 79 | C109: 411.7878306 | D109: 32.53123862 | E109: 147.64 | F109: -115.1087614 | G109: 0.4087653641 | H109: 408.7653641 | I109: 160 | J109: 248.7653641
B110: 80 | C110: 411.7495273 | D110: 32.93996218 | E110: 147.8 | F110: -114.8600378 | G110: 0.4086817297 | H110: 408.6817297 | I110: 160 | J110: 248.6817297
B111: 81 | C111: 411.7111356 | D111: 33.34860199 | E111: 147.96 | F111: -114.611398 | G111: 0.4085978302 | H111: 408.5978302 | I111: 160 | J111: 248.5978302
B112: 82 | C112: 411.6726556 | D112: 33.75715776 | E112: 148.12 | F112: -114.3628422 | G112: 0.4085136654 | H112: 408.5136654 | I112: 160 | J112: 248.5136654
B113: 83 | C113: 411.6340871 | D113: 34.16562923 | E113: 148.28 | F113: -114.1143708 | G113: 0.4084292355 | H113: 408.4292355 | I113: 160 | J113: 248.4292355
B114: 84 | C114: 411.5954302 | D114: 34.57401614 | E114: 148.44 | F114: -113.8659839 | G114: 0.4083445404 | H114: 408.3445403 | I114: 160 | J114: 248.3445403
B115: 85 | C115: 411.556685 | D115: 34.98231822 | E115: 148.6 | F115: -113.6176818 | G115: 0.40825958 | H115: 408.25958 | I115: 160 | J115: 248.25958
B116: 86 | C116: 411.5178513 | D116: 35.39053521 | E116: 148.76 | F116: -113.3694648 | G116: 0.4081743545 | H116: 408.1743545 | I116: 160 | J116: 248.1743545
B117: 87 | C117: 411.4789292 | D117: 35.79866684 | E117: 148.92 | F117: -113.1213332 | G117: 0.4080888637 | H117: 408.0888637 | I117: 160 | J117: 248.0888637
B118: 88 | C118: 411.4399188 | D118: 36.20671285 | E118: 149.08 | F118: -112.8732872 | G118: 0.4080031078 | H118: 408.0031078 | I118: 160 | J118: 248.0031078
B119: 89 | C119: 411.4008199 | D119: 36.61467297 | E119: 149.24 | F119: -112.625327 | G119: 0.4079170866 | H119: 407.9170866 | I119: 160 | J119: 247.9170866
B120: 90 | C120: 411.3616326 | D120: 37.02254693 | E120: 149.4 | F120: -112.3774531 | G120: 0.4078308003 | H120: 407.8308003 | I120: 160 | J120: 247.8308003
B121: 91 | C121: 411.3223569 | D121: 37.43033448 | E121: 149.56 | F121: -112.1296655 | G121: 0.4077442488 | H121: 407.7442488 | I121: 160 | J121: 247.7442488
B122: 92 | C122: 411.2829929 | D122: 37.83803534 | E122: 149.72 | F122: -111.8819647 | G122: 0.407657432 | H122: 407.657432 | I122: 160 | J122: 247.657432
B123: 93 | C123: 411.2435404 | D123: 38.24564926 | E123: 149.88 | F123: -111.6343507 | G123: 0.4075703501 | H123: 407.5703501 | I123: 160 | J123: 247.5703501
B124: 94 | C124: 411.2039995 | D124: 38.65317596 | E124: 150.04 | F124: -111.386824 | G124: 0.407483003 | H124: 407.483003 | I124: 160 | J124: 247.483003
B125: 95 | C125: 411.1643703 | D125: 39.06061517 | E125: 150.2 | F125: -111.1393848 | G125: 0.4073953906 | H125: 407.3953906 | I125: 160 | J125: 247.3953906
B126: 96 | C126: 411.1246526 | D126: 39.46796665 | E126: 150.36 | F126: -110.8920334 | G126: 0.4073075131 | H126: 407.3075131 | I126: 160 | J126: 247.3075131
B127: 97 | C127: 411.0848465 | D127: 39.87523011 | E127: 150.52 | F127: -110.6447699 | G127: 0.4072193703 | H127: 407.2193703 | I127: 160 | J127: 247.2193703
B128: 98 | C128: 411.0449521 | D128: 40.2824053 | E128: 150.68 | F128: -110.3975947 | G128: 0.4071309624 | H128: 407.1309624 | I128: 160 | J128: 247.1309624
B129: 99 | C129: 411.0049692 | D129: 40.68949195 | E129: 150.84 | F129: -110.1505081 | G129: 0.4070422893 | H129: 407.0422893 | I129: 160 | J129: 247.0422893
B130: 100 | C130: 410.9648979 | D130: 41.09648979 | E130: 151 | F130: -109.9035102 | G130: 0.4069533509 | H130: 406.9533509 | I130: 160 | J130: 246.9533509
B131: 101 | C131: 410.9247382 | D131: 41.50339856 | E131: 151.16 | F131: -109.6566014 | G131: 0.4068641474 | H131: 406.8641474 | I131: 160 | J131: 246.8641474
B132: 102 | C132: 410.8844902 | D132: 41.910218 | E132: 151.32 | F132: -109.409782 | G132: 0.4067746786 | H132: 406.7746786 | I132: 160 | J132: 246.7746786
B133: 103 | C133: 410.8441537 | D133: 42.31694783 | E133: 151.48 | F133: -109.1630522 | G133: 0.4066849447 | H133: 406.6849447 | I133: 160 | J133: 246.6849447
B134: 104 | C134: 410.8037288 | D134: 42.7235878 | E134: 151.64 | F134: -108.9164122 | G134: 0.4065949455 | H134: 406.5949455 | I134: 160 | J134: 246.5949455
B135: 105 | C135: 410.7632156 | D135: 43.13013763 | E135: 151.8 | F135: -108.6698624 | G135: 0.4065046812 | H135: 406.5046812 | I135: 160 | J135: 246.5046812
B136: 106 | C136: 410.7226139 | D136: 43.53659707 | E136: 151.96 | F136: -108.4234029 | G136: 0.4064141517 | H136: 406.4141517 | I136: 160 | J136: 246.4141517
B137: 107 | C137: 410.6819238 | D137: 43.94296585 | E137: 152.12 | F137: -108.1770342 | G137: 0.4063233569 | H137: 406.3233569 | I137: 160 | J137: 246.3233569
B138: 108 | C138: 410.6411453 | D138: 44.3492437 | E138: 152.28 | F138: -107.9307563 | G138: 0.406232297 | H138: 406.232297 | I138: 160 | J138: 246.232297
B139: 109 | C139: 410.6002785 | D139: 44.75543035 | E139: 152.44 | F139: -107.6845696 | G139: 0.4061409718 | H139: 406.1409718 | I139: 160 | J139: 246.1409718
B140: 110 | C140: 410.5593232 | D140: 45.16152555 | E140: 152.6 | F140: -107.4384744 | G140: 0.4060493815 | H140: 406.0493815 | I140: 160 | J140: 246.0493815
B141: 111 | C141: 410.5182795 | D141: 45.56752903 | E141: 152.76 | F141: -107.192471 | G141: 0.405957526 | H141: 405.957526 | I141: 160 | J141: 245.957526
B142: 112 | C142: 410.4771475 | D142: 45.97344052 | E142: 152.92 | F142: -106.9465595 | G142: 0.4058654052 | H142: 405.8654052 | I142: 160 | J142: 245.8654052
B143: 113 | C143: 410.435927 | D143: 46.37925975 | E143: 153.08 | F143: -106.7007402 | G143: 0.4057730193 | H143: 405.7730193 | I143: 160 | J143: 245.7730193
B144: 114 | C144: 410.3946181 | D144: 46.78498647 | E144: 153.24 | F144: -106.4550135 | G144: 0.4056803681 | H144: 405.6803681 | I144: 160 | J144: 245.6803681
B145: 115 | C145: 410.3532209 | D145: 47.1906204 | E145: 153.4 | F145: -106.2093796 | G145: 0.4055874518 | H145: 405.5874518 | I145: 160 | J145: 245.5874518
B146: 116 | C146: 410.3117352 | D146: 47.59616128 | E146: 153.56 | F146: -105.9638387 | G146: 0.4054942703 | H146: 405.4942703 | I146: 160 | J146: 245.4942703
B147: 117 | C147: 410.2701611 | D147: 48.00160885 | E147: 153.72 | F147: -105.7183911 | G147: 0.4054008235 | H147: 405.4008235 | I147: 160 | J147: 245.4008235
B148: 118 | C148: 410.2284987 | D148: 48.40696284 | E148: 153.88 | F148: -105.4730372 | G148: 0.4053071116 | H148: 405.3071116 | I148: 160 | J148: 245.3071116
B149: 119 | C149: 410.1867478 | D149: 48.81222299 | E149: 154.04 | F149: -105.227777 | G149: 0.4052131344 | H149: 405.2131344 | I149: 160 | J149: 245.2131344
B150: 120 | C150: 410.1449085 | D150: 49.21738902 | E150: 154.2 | F150: -104.982611 | G150: 0.4051188921 | H150: 405.1188921 | I150: 160 | J150: 245.1188921
B151: 121 | C151: 410.1029808 | D151: 49.62246068 | E151: 154.36 | F151: -104.7375393 | G151: 0.4050243846 | H151: 405.0243846 | I151: 160 | J151: 245.0243846
B152: 122 | C152: 410.0609648 | D152: 50.0274377 | E152: 154.52 | F152: -104.4925623 | G152: 0.4049296118 | H152: 404.9296118 | I152: 160 | J152: 244.9296118
B153: 123 | C153: 410.0188603 | D153: 50.43231982 | E153: 154.68 | F153: -104.2476802 | G153: 0.4048345739 | H153: 404.8345739 | I153: 160 | J153: 244.8345739
B154: 124 | C154: 409.9766674 | D154: 50.83710676 | E154: 154.84 | F154: -104.0028932 | G154: 0.4047392707 | H154: 404.7392708 | I154: 160 | J154: 244.7392708
B155: 125 | C155: 409.9343862 | D155: 51.24179827 | E155: 155 | F155: -103.7582017 | G155: 0.4046437024 | H155: 404.6437024 | I155: 160 | J155: 244.6437024
B156: 126 | C156: 409.8920165 | D156: 51.64639408 | E156: 155.16 | F156: -103.5136059 | G156: 0.4045478689 | H156: 404.5478689 | I156: 160 | J156: 244.5478689
B157: 127 | C157: 409.8495584 | D157: 52.05089392 | E157: 155.32 | F157: -103.2691061 | G157: 0.4044517701 | H157: 404.4517701 | I157: 160 | J157: 244.4517701
B158: 128 | C158: 409.807012 | D158: 52.45529753 | E158: 155.48 | F158: -103.0247025 | G158: 0.4043554062 | H158: 404.3554062 | I158: 160 | J158: 244.3554062
B159: 129 | C159: =$C$25*B159^2+$C$26*B159+$C$27 -> 409.7643771 | D159: =B159*C159/1000 -> 52.85960464 | E159: =COST(B159,$E$16,$E$20,$E$21,$D$20,$D$21,$D$22) -> 155.64 | F159: =D159-E159 -> -102.7803954 | G159: =($C$25*(3*B159^2)+$C$26*(2*B159)+$C$27)/1000 -> 0.4042587771 | H159: =1000*G159 -> 404.258777 | I159: =IF(B159<$E$20,$D$20,IF(B159<$E$22,$D$21,$D$22)) -> 160 | J159: =H159-I159 -> 244.258777
B160: 130 | C160: 409.7216538 | D160: 53.263815 | E160: 155.8 | F160: -102.536185 | G160: 0.4041618827 | H160: 404.1618827 | I160: 160 | J160: 244.1618827
B161: 131 | C161: 409.6788421 | D161: 53.66792832 | E161: 155.96 | F161: -102.2920717 | G161: 0.4040647232 | H161: 404.0647232 | I161: 160 | J161: 244.0647232
B162: 132 | C162: 409.6359421 | D162: 54.07194435 | E162: 156.12 | F162: -102.0480556 | G162: 0.4039672984 | H162: 403.9672984 | I162: 160 | J162: 243.9672984
B163: 133 | C163: 409.5929536 | D163: 54.47586283 | E163: 156.28 | F163: -101.8041372 | G163: 0.4038696085 | H163: 403.8696085 | I163: 160 | J163: 243.8696085
B164: 134 | C164: 409.5498767 | D164: 54.87968348 | E164: 156.44 | F164: -101.5603165 | G164: 0.4037716533 | H164: 403.7716534 | I164: 160 | J164: 243.7716534
B165: 135 | C165: 409.5067115 | D165: 55.28340605 | E165: 156.6 | F165: -101.316594 | G165: 0.403673433 | H165: 403.673433 | I165: 160 | J165: 243.673433
B166: 136 | C166: 409.4634578 | D166: 55.68703026 | E166: 156.76 | F166: -101.0729697 | G166: 0.4035749475 | H166: 403.5749475 | I166: 160 | J166: 243.5749475
B167: 137 | C167: 409.4201157 | D167: 56.09055585 | E167: 156.92 | F167: -100.8294441 | G167: 0.4034761967 | H167: 403.4761967 | I167: 160 | J167: 243.4761967
B168: 138 | C168: 409.3766852 | D168: 56.49398256 | E168: 157.08 | F168: -100.5860174 | G168: 0.4033771808 | H168: 403.3771808 | I168: 160 | J168: 243.3771808
B169: 139 | C169: 409.3331664 | D169: 56.89731013 | E169: 157.24 | F169: -100.3426899 | G169: 0.4032778996 | H169: 403.2778996 | I169: 160 | J169: 243.2778996
B170: 140 | C170: 409.2895591 | D170: 57.30053828 | E170: 157.4 | F170: -100.0994617 | G170: 0.4031783533 | H170: 403.1783533 | I170: 160 | J170: 243.1783533
B171: 141 | C171: 409.2458634 | D171: 57.70366675 | E171: 157.56 | F171: -99.85633325 | G171: 0.4030785418 | H171: 403.0785418 | I171: 160 | J171: 243.0785418
B172: 142 | C172: 409.2020794 | D172: 58.10669527 | E172: 157.72 | F172: -99.61330473 | G172: 0.402978465 | H172: 402.978465 | I172: 160 | J172: 242.978465
B173: 143 | C173: 409.1582069 | D173: 58.50962359 | E173: 157.88 | F173: -99.37037641 | G173: 0.4028781231 | H173: 402.8781231 | I173: 160 | J173: 242.8781231
B174: 144 | C174: 409.114246 | D174: 58.91245143 | E174: 158.04 | F174: -99.12754857 | G174: 0.4027775159 | H174: 402.777516 | I174: 160 | J174: 242.777516
B175: 145 | C175: 409.0701968 | D175: 59.31517853 | E175: 158.2 | F175: -98.88482147 | G175: 0.4026766436 | H175: 402.6766436 | I175: 160 | J175: 242.6766436
B176: 146 | C176: 409.0260591 | D176: 59.71780463 | E176: 158.36 | F176: -98.64219537 | G176: 0.4025755061 | H176: 402.5755061 | I176: 160 | J176: 242.5755061
B177: 147 | C177: 408.981833 | D177: 60.12032945 | E177: 158.52 | F177: -98.39967055 | G177: 0.4024741033 | H177: 402.4741033 | I177: 160 | J177: 242.4741033
B178: 148 | C178: 408.9375185 | D178: 60.52275275 | E178: 158.68 | F178: -98.15724725 | G178: 0.4023724354 | H178: 402.3724354 | I178: 160 | J178: 242.3724354
B179: 149 | C179: 408.8931157 | D179: 60.92507424 | E179: 158.84 | F179: -97.91492576 | G179: 0.4022705022 | H179: 402.2705022 | I179: 160 | J179: 242.2705022
B180: 150 | C180: 408.8486244 | D180: 61.32729366 | E180: 159 | F180: -97.67270634 | G180: 0.4021683039 | H180: 402.1683039 | I180: 160 | J180: 242.1683039
B181: 151 | C181: 408.8040447 | D181: 61.72941076 | E181: 159.16 | F181: -97.43058924 | G181: 0.4020658404 | H181: 402.0658404 | I181: 160 | J181: 242.0658404
B182: 152 | C182: 408.7593767 | D182: 62.13142525 | E182: 159.32 | F182: -97.18857475 | G182: 0.4019631116 | H182: 401.9631116 | I182: 160 | J182: 241.9631116
B183: 153 | C183: 408.7146202 | D183: 62.53333689 | E183: 159.48 | F183: -96.94666311 | G183: 0.4018601177 | H183: 401.8601177 | I183: 160 | J183: 241.8601177
B184: 154 | C184: 408.6697753 | D184: 62.9351454 | E184: 159.64 | F184: -96.7048546 | G184: 0.4017568585 | H184: 401.7568586 | I184: 160 | J184: 241.7568586
B185: 155 | C185: 408.6248421 | D185: 63.33685052 | E185: 159.8 | F185: -96.46314948 | G185: 0.4016533342 | H185: 401.6533342 | I185: 160 | J185: 241.6533342
B186: 156 | C186: 408.5798204 | D186: 63.73845198 | E186: 159.96 | F186: -96.22154802 | G186: 0.4015495447 | H186: 401.5495447 | I186: 160 | J186: 241.5495447
B187: 157 | C187: 408.5347103 | D187: 64.13994952 | E187: 160.12 | F187: -95.98005048 | G187: 0.4014454899 | H187: 401.4454899 | I187: 160 | J187: 241.4454899
B188: 158 | C188: 408.4895118 | D188: 64.54134287 | E188: 160.28 | F188: -95.73865713 | G188: 0.40134117 | H188: 401.34117 | I188: 160 | J188: 241.34117
B189: 159 | C189: 408.444225 | D189: 64.94263177 | E189: 160.44 | F189: -95.49736823 | G189: 0.4012365848 | H189: 401.2365848 | I189: 160 | J189: 241.2365848
B190: 160 | C190: 408.3988497 | D190: 65.34381595 | E190: 160.6 | F190: -95.25618405 | G190: 0.4011317345 | H190: 401.1317345 | I190: 160 | J190: 241.1317345
B191: 161 | C191: 408.353386 | D191: 65.74489515 | E191: 160.76 | F191: -95.01510485 | G191: 0.401026619 | H191: 401.026619 | I191: 160 | J191: 241.026619
B192: 162 | C192: 408.307834 | D192: 66.1458691 | E192: 160.92 | F192: -94.7741309 | G192: 0.4009212382 | H192: 400.9212382 | I192: 160 | J192: 240.9212382
B193: 163 | C193: 408.2621935 | D193: 66.54673754 | E193: 161.08 | F193: -94.53326246 | G193: 0.4008155923 | H193: 400.8155923 | I193: 160 | J193: 240.8155923
B194: 164 | C194: 408.2164646 | D194: 66.9475002 | E194: 161.24 | F194: -94.2924998 | G194: 0.4007096811 | H194: 400.7096811 | I194: 160 | J194: 240.7096811
B195: 165 | C195: 408.1706474 | D195: 67.34815681 | E195: 161.4 | F195: -94.05184319 | G195: 0.4006035048 | H195: 400.6035048 | I195: 160 | J195: 240.6035048
B196: 166 | C196: 408.1247417 | D196: 67.74870712 | E196: 161.56 | F196: -93.81129288 | G196: 0.4004970633 | H196: 400.4970633 | I196: 160 | J196: 240.4970633
B197: 167 | C197: 408.0787476 | D197: 68.14915085 | E197: 161.72 | F197: -93.57084915 | G197: 0.4003903565 | H197: 400.3903565 | I197: 160 | J197: 240.3903565
B198: 168 | C198: 408.0326652 | D198: 68.54948775 | E198: 161.88 | F198: -93.33051225 | G198: 0.4002833846 | H198: 400.2833846 | I198: 160 | J198: 240.2833846
B199: 169 | C199: 407.9864943 | D199: 68.94971753 | E199: 162.04 | F199: -93.09028247 | G199: 0.4001761474 | H199: 400.1761474 | I199: 160 | J199: 240.1761474
B200: 170 | C200: 407.940235 | D200: 69.34983995 | E200: 162.2 | F200: -92.85016005 | G200: 0.4000686451 | H200: 400.0686451 | I200: 160 | J200: 240.0686451
B201: 171 | C201: 407.8938873 | D201: 69.74985474 | E201: 162.36 | F201: -92.61014526 | G201: 0.3999608776 | H201: 399.9608776 | I201: 160 | J201: 239.9608776
B202: 172 | C202: 407.8474513 | D202: 70.14976162 | E202: 162.52 | F202: -92.37023838 | G202: 0.3998528448 | H202: 399.8528448 | I202: 160 | J202: 239.8528448
B203: 173 | C203: 407.8009268 | D203: 70.54956034 | E203: 162.68 | F203: -92.13043966 | G203: 0.3997445469 | H203: 399.7445469 | I203: 160 | J203: 239.7445469
B204: 174 | C204: 407.7543139 | D204: 70.94925062 | E204: 162.84 | F204: -91.89074938 | G204: 0.3996359837 | H204: 399.6359837 | I204: 160 | J204: 239.6359837
B205: 175 | C205: 407.7076127 | D205: 71.34883222 | E205: 163 | F205: -91.65116778 | G205: 0.3995271554 | H205: 399.5271554 | I205: 160 | J205: 239.5271554
B206: 176 | C206: 407.660823 | D206: 71.74830485 | E206: 163.16 | F206: -91.41169515 | G206: 0.3994180619 | H206: 399.4180619 | I206: 160 | J206: 239.4180619
B207: 177 | C207: 407.6139449 | D207: 72.14766825 | E207: 163.32 | F207: -91.17233175 | G207: 0.3993087031 | H207: 399.3087031 | I207: 160 | J207: 239.3087031
... 2828 more rows

Sheet Q1-4&6
B5: Potential national market: | D5: 350000000
B7: Test Markets
B8: Market Number | C8: Market Size | D8: Price | E8: Projected Yearly Sales (number of drives) | F8: Projected Yearly Sales (in K's) in National Mkt
B9: 1 | C9: 144900 | D9: 265.95 | E9: 570 | F9: =(E9/C9)*$D$5/1000 -> 1376.811594
B10: 2 | C10: 4627600 | D10: 276.95 | E10: 17178 | F10: 1299.226381
B11: 3 | C11: 1049800 | D11: 287.95 | E11: 3801 | F11: 1267.241379
B12: 4 | C12: 2946500 | D12: 299.95 | E12: 9941 | F12: 1180.841677
B13: 5 | C13: 5042300 | D13: 310.95 | E13: 15594 | F13: 1082.422704
B14: 6 | C14: 3617600 | D14: 321.95 | E14: 10859 | F14: 1050.599845
D15: y-values | F15: x-values
B16: Fixed Cost For The Year: | D16: 135000000 | E16: 135
B18: Variable Costs
B19: Quantity | D19: Cost per drive
B20: First: | C20: 800000 | D20: 160 | E20: 800 | F20: Batch size1
B21: Next: | C21: 400000 | D21: 128 | E21: 400 | F21: Batch size2
B22: Further: | D22: 72 | E22: 1200 | F22: sum of batch size 1&2
B24: coefficients of the quadratic function-8 decimal places(For Q1-4 & 6) | E24: h used for the difference quotient
B25: a | C25: -5.349e-05 | E25: 1e-06
B26: b | C26: -0.03440302
B27: c | C27: 414.5344449 | G27: derivative = a*3*q^2+b*2*q+c
B28: select q to include the x-intercept of D(q) | C28: use equation obtained from fitting a quadratic trend line(use a,b,c) | E28: user defined COST function | G28: using derivative of aq^3+bq^2+cq | H28: using MR(q)=1000*R'(q) | I28: using nested IF function | J28: using MR(q)-MC(q)
B29: q | C29: D(q) | D29: R(q) | E29: C(q) | F29: P(q) | G29: R'(q) | H29: MR(q) | I29: MC(q) | J29: MP(q)
B30: 0 | C30: =$C$25*B30^2+$C$26*B30+$C$27 -> 414.5344449 | D30: =B30*C30/1000 -> 0 | E30: =COST(B30,$E$16,$E$20,$E$21,$D$20,$D$21,$D$22) -> 135 | F30: =D30-E30 -> -135 | G30: =($C$25*(3*B30^2)+$C$26*(2*B30)+$C$27)/1000 -> 0.4145344449 | H30: =1000*G30 -> 414.5344449 | I30: =IF(B30<$E$20,$D$20,IF(B30<$E$22,$D$21,$D$22)) -> 160 | J30: =H30-I30 -> 254.5344449
B31: 1 | C31: =$C$25*B31^2+$C$26*B31+$C$27 -> 414.4999884 | D31: =B31*C31/1000 -> 0.4144999884 | E31: =COST(B31,$E$16,$E$20,$E$21,$D$20,$D$21,$D$22) -> 135.16 | F31: =D31-E31 -> -134.7455 | G31: =($C$25*(3*B31^2)+$C$26*(2*B31)+$C$27)/1000 -> 0.4144654784 | H31: =1000*G31 -> 414.4654784 | I31: =IF(B31<$E$20,$D$20,IF(B31<$E$22,$D$21,$D$22)) -> 160 | J31: =H31-I31 -> 254.4654784
B32: 2 | C32: 414.4654249 | D32: 0.8289308498 | E32: 135.32 | F32: -134.4910692 | G32: 0.414396191 | H32: 414.396191 | I32: 160 | J32: 254.396191
B33: 3 | C33: 414.4307544 | D33: 1.243292263 | E33: 135.48 | F33: -134.2367077 | G33: 0.4143265826 | H33: 414.3265826 | I33: 160 | J33: 254.3265826
B34: 4 | C34: 414.395977 | D34: 1.657583908 | E34: 135.64 | F34: -133.9824161 | G34: 0.4142566532 | H34: 414.2566532 | I34: 160 | J34: 254.2566532
B35: 5 | C35: 414.3610926 | D35: 2.071805463 | E35: 135.8 | F35: -133.7281945 | G35: 0.414186403 | H35: 414.186403 | I35: 160 | J35: 254.186403
B36: 6 | C36: 414.3261011 | D36: 2.485956607 | E36: 135.96 | F36: -133.4740434 | G36: 0.4141158317 | H36: 414.1158317 | I36: 160 | J36: 254.1158317
B37: 7 | C37: 414.2910028 | D37: 2.900037019 | E37: 136.12 | F37: -133.219963 | G37: 0.4140449396 | H37: 414.0449396 | I37: 160 | J37: 254.0449396
B38: 8 | C38: 414.2557974 | D38: 3.314046379 | E38: 136.28 | F38: -132.9659536 | G38: 0.4139737265 | H38: 413.9737265 | I38: 160 | J38: 253.9737265
B39: 9 | C39: 414.220485 | D39: 3.727984365 | E39: 136.44 | F39: -132.7120156 | G39: 0.4139021925 | H39: 413.9021925 | I39: 160 | J39: 253.9021925
B40: 10 | C40: 414.1850657 | D40: 4.141850657 | E40: 136.6 | F40: -132.4581493 | G40: 0.4138303375 | H40: 413.8303375 | I40: 160 | J40: 253.8303375
B41: 11 | C41: 414.1495394 | D41: 4.555644933 | E41: 136.76 | F41: -132.2043551 | G41: 0.4137581616 | H41: 413.7581616 | I41: 160 | J41: 253.7581616
B42: 12 | C42: 414.1139061 | D42: 4.969366873 | E42: 136.92 | F42: -131.9506331 | G42: 0.4136856648 | H42: 413.6856648 | I42: 160 | J42: 253.6856648
B43: 13 | C43: 414.0781658 | D43: 5.383016156 | E43: 137.08 | F43: -131.6969838 | G43: 0.413612847 | H43: 413.612847 | I43: 160 | J43: 253.612847
B44: 14 | C44: 414.0423186 | D44: 5.79659246 | E44: 137.24 | F44: -131.4434075 | G44: 0.4135397082 | H44: 413.5397082 | I44: 160 | J44: 253.5397082
B45: 15 | C45: 414.0063644 | D45: 6.210095465 | E45: 137.4 | F45: -131.1899045 | G45: 0.4134662486 | H45: 413.4662486 | I45: 160 | J45: 253.4662486
B46: 16 | C46: 413.9703032 | D46: 6.62352485 | E46: 137.56 | F46: -130.9364751 | G46: 0.4133924679 | H46: 413.3924679 | I46: 160 | J46: 253.3924679
B47: 17 | C47: 413.934135 | D47: 7.036880294 | E47: 137.72 | F47: -130.6831197 | G47: 0.4133183664 | H47: 413.3183664 | I47: 160 | J47: 253.3183664
B48: 18 | C48: 413.8978598 | D48: 7.450161476 | E48: 137.88 | F48: -130.4298385 | G48: 0.4132439439 | H48: 413.2439439 | I48: 160 | J48: 253.2439439
B49: 19 | C49: 413.8614776 | D49: 7.863368075 | E49: 138.04 | F49: -130.1766319 | G49: 0.4131692005 | H49: 413.1692005 | I49: 160 | J49: 253.1692005
B50: 20 | C50: 413.8249885 | D50: 8.27649977 | E50: 138.2 | F50: -129.9235002 | G50: 0.4130941361 | H50: 413.0941361 | I50: 160 | J50: 253.0941361
B51: 21 | C51: 413.7883924 | D51: 8.68955624 | E51: 138.36 | F51: -129.6704438 | G51: 0.4130187508 | H51: 413.0187508 | I51: 160 | J51: 253.0187508
B52: 22 | C52: 413.7516893 | D52: 9.102537165 | E52: 138.52 | F52: -129.4174628 | G52: 0.4129430445 | H52: 412.9430445 | I52: 160 | J52: 252.9430445
B53: 23 | C53: 413.7148792 | D53: 9.515442223 | E53: 138.68 | F53: -129.1645578 | G53: 0.4128670174 | H53: 412.8670174 | I53: 160 | J53: 252.8670174
B54: 24 | C54: 413.6779622 | D54: 9.928271093 | E54: 138.84 | F54: -128.9117289 | G54: 0.4127906692 | H54: 412.7906692 | I54: 160 | J54: 252.7906692
B55: 25 | C55: 413.6409382 | D55: 10.34102345 | E55: 139 | F55: -128.6589765 | G55: 0.4127140002 | H55: 412.7140002 | I55: 160 | J55: 252.7140002
B56: 26 | C56: 413.6038071 | D56: 10.75369899 | E56: 139.16 | F56: -128.406301 | G56: 0.4126370101 | H56: 412.6370101 | I56: 160 | J56: 252.6370101
B57: 27 | C57: 413.5665692 | D57: 11.16629737 | E57: 139.32 | F57: -128.1537026 | G57: 0.4125596992 | H57: 412.5596992 | I57: 160 | J57: 252.5596992
B58: 28 | C58: 413.5292242 | D58: 11.57881828 | E58: 139.48 | F58: -127.9011817 | G58: 0.4124820673 | H58: 412.4820673 | I58: 160 | J58: 252.4820673
B59: 29 | C59: 413.4917722 | D59: 11.99126139 | E59: 139.64 | F59: -127.6487386 | G59: 0.4124041145 | H59: 412.4041145 | I59: 160 | J59: 252.4041145
B60: 30 | C60: 413.4542133 | D60: 12.4036264 | E60: 139.8 | F60: -127.3963736 | G60: 0.4123258407 | H60: 412.3258407 | I60: 160 | J60: 252.3258407
B61: 31 | C61: 413.4165474 | D61: 12.81591297 | E61: 139.96 | F61: -127.144087 | G61: 0.412247246 | H61: 412.247246 | I61: 160 | J61: 252.247246
B62: 32 | C62: 413.3787745 | D62: 13.22812078 | E62: 140.12 | F62: -126.8918792 | G62: 0.4121683304 | H62: 412.1683304 | I62: 160 | J62: 252.1683304
B63: 33 | C63: 413.3408946 | D63: 13.64024952 | E63: 140.28 | F63: -126.6397505 | G63: 0.4120890938 | H63: 412.0890938 | I63: 160 | J63: 252.0890938
B64: 34 | C64: 413.3029078 | D64: 14.05229886 | E64: 140.44 | F64: -126.3877011 | G64: 0.4120095362 | H64: 412.0095362 | I64: 160 | J64: 252.0095362
B65: 35 | C65: 413.264814 | D65: 14.46426849 | E65: 140.6 | F65: -126.1357315 | G65: 0.4119296578 | H65: 411.9296578 | I65: 160 | J65: 251.9296578
B66: 36 | C66: 413.2266131 | D66: 14.87615807 | E66: 140.76 | F66: -125.8838419 | G66: 0.4118494583 | H66: 411.8494583 | I66: 160 | J66: 251.8494583
B67: 37 | C67: 413.1883054 | D67: 15.2879673 | E67: 140.92 | F67: -125.6320327 | G67: 0.411768938 | H67: 411.768938 | I67: 160 | J67: 251.768938
B68: 38 | C68: 413.1498906 | D68: 15.69969584 | E68: 141.08 | F68: -125.3803042 | G68: 0.4116880967 | H68: 411.6880967 | I68: 160 | J68: 251.6880967
B69: 39 | C69: 413.1113688 | D69: 16.11134338 | E69: 141.24 | F69: -125.1286566 | G69: 0.4116069345 | H69: 411.6069345 | I69: 160 | J69: 251.6069345
B70: 40 | C70: 413.0727401 | D70: 16.5229096 | E70: 141.4 | F70: -124.8770904 | G70: 0.4115254513 | H70: 411.5254513 | I70: 160 | J70: 251.5254513
B71: 41 | C71: 413.0340044 | D71: 16.93439418 | E71: 141.56 | F71: -124.6256058 | G71: 0.4114436472 | H71: 411.4436472 | I71: 160 | J71: 251.4436472
B72: 42 | C72: 412.9951617 | D72: 17.34579679 | E72: 141.72 | F72: -124.3742032 | G72: 0.4113615221 | H72: 411.3615221 | I72: 160 | J72: 251.3615221
B73: 43 | C73: 412.956212 | D73: 17.75711712 | E73: 141.88 | F73: -124.1228829 | G73: 0.4112790762 | H73: 411.2790762 | I73: 160 | J73: 251.2790762
B74: 44 | C74: 412.9171554 | D74: 18.16835484 | E74: 142.04 | F74: -123.8716452 | G74: 0.4111963092 | H74: 411.1963092 | I74: 160 | J74: 251.1963092
B75: 45 | C75: 412.8779918 | D75: 18.57950963 | E75: 142.2 | F75: -123.6204904 | G75: 0.4111132214 | H75: 411.1132214 | I75: 160 | J75: 251.1132214
B76: 46 | C76: 412.8387211 | D76: 18.99058117 | E76: 142.36 | F76: -123.3694188 | G76: 0.4110298125 | H76: 411.0298125 | I76: 160 | J76: 251.0298125
B77: 47 | C77: 412.7993436 | D77: 19.40156915 | E77: 142.52 | F77: -123.1184309 | G77: 0.4109460828 | H77: 410.9460828 | I77: 160 | J77: 250.9460828
B78: 48 | C78: 412.759859 | D78: 19.81247323 | E78: 142.68 | F78: -122.8675268 | G78: 0.4108620321 | H78: 410.8620321 | I78: 160 | J78: 250.8620321
B79: 49 | C79: 412.7202674 | D79: 20.2232931 | E79: 142.84 | F79: -122.6167069 | G79: 0.4107776605 | H79: 410.7776605 | I79: 160 | J79: 250.7776605
B80: 50 | C80: 412.6805689 | D80: 20.63402845 | E80: 143 | F80: -122.3659716 | G80: 0.4106929679 | H80: 410.6929679 | I80: 160 | J80: 250.6929679
B81: 51 | C81: 412.6407634 | D81: 21.04467893 | E81: 143.16 | F81: -122.1153211 | G81: 0.4106079544 | H81: 410.6079544 | I81: 160 | J81: 250.6079544
B82: 52 | C82: 412.6008509 | D82: 21.45524425 | E82: 143.32 | F82: -121.8647558 | G82: 0.41052262 | H82: 410.5226199 | I82: 160 | J82: 250.5226199
B83: 53 | C83: 412.5608314 | D83: 21.86572407 | E83: 143.48 | F83: -121.6142759 | G83: 0.4104369646 | H83: 410.4369646 | I83: 160 | J83: 250.4369646
B84: 54 | C84: 412.520705 | D84: 22.27611807 | E84: 143.64 | F84: -121.3638819 | G84: 0.4103509882 | H84: 410.3509882 | I84: 160 | J84: 250.3509882
B85: 55 | C85: 412.4804716 | D85: 22.68642594 | E85: 143.8 | F85: -121.1135741 | G85: 0.410264691 | H85: 410.264691 | I85: 160 | J85: 250.264691
B86: 56 | C86: 412.4401312 | D86: 23.09664734 | E86: 143.96 | F86: -120.8633527 | G86: 0.4101780728 | H86: 410.1780728 | I86: 160 | J86: 250.1780728
B87: 57 | C87: 412.3996838 | D87: 23.50678197 | E87: 144.12 | F87: -120.613218 | G87: 0.4100911336 | H87: 410.0911336 | I87: 160 | J87: 250.0911336
B88: 58 | C88: 412.3591294 | D88: 23.9168295 | E88: 144.28 | F88: -120.3631705 | G88: 0.4100038735 | H88: 410.0038735 | I88: 160 | J88: 250.0038735
B89: 59 | C89: 412.318468 | D89: 24.32678961 | E89: 144.44 | F89: -120.1132104 | G89: 0.4099162925 | H89: 409.9162925 | I89: 160 | J89: 249.9162925
B90: 60 | C90: 412.2776997 | D90: 24.73666198 | E90: 144.6 | F90: -119.863338 | G90: 0.4098283905 | H90: 409.8283905 | I90: 160 | J90: 249.8283905
B91: 61 | C91: 412.2368244 | D91: 25.14644629 | E91: 144.76 | F91: -119.6135537 | G91: 0.4097401676 | H91: 409.7401676 | I91: 160 | J91: 249.7401676
B92: 62 | C92: 412.1958421 | D92: 25.55614221 | E92: 144.92 | F92: -119.3638578 | G92: 0.4096516237 | H92: 409.6516237 | I92: 160 | J92: 249.6516237
B93: 63 | C93: 412.1547528 | D93: 25.96574943 | E93: 145.08 | F93: -119.1142506 | G93: 0.409562759 | H93: 409.562759 | I93: 160 | J93: 249.562759
B94: 64 | C94: 412.1135566 | D94: 26.37526762 | E94: 145.24 | F94: -118.8647324 | G94: 0.4094735732 | H94: 409.4735732 | I94: 160 | J94: 249.4735732
B95: 65 | C95: =$C$25*B95^2+$C$26*B95+$C$27 -> 412.0722534 | D95: =B95*C95/1000 -> 26.78469647 | E95: =COST(B95,$E$16,$E$20,$E$21,$D$20,$D$21,$D$22) -> 145.4 | F95: =D95-E95 -> -118.6153035 | G95: =($C$25*(3*B95^2)+$C$26*(2*B95)+$C$27)/1000 -> 0.4093840666 | H95: =1000*G95 -> 409.3840666 | I95: =IF(B95<$E$20,$D$20,IF(B95<$E$22,$D$21,$D$22)) -> 160 | J95: =H95-I95 -> 249.3840666
B96: 66 | C96: 412.0308432 | D96: 27.19403565 | E96: 145.56 | F96: -118.3659644 | G96: 0.4092942389 | H96: 409.2942389 | I96: 160 | J96: 249.2942389
B97: 67 | C97: 411.989326 | D97: 27.60328484 | E97: 145.72 | F97: -118.1167152 | G97: 0.4092040904 | H97: 409.2040904 | I97: 160 | J97: 249.2040904
B98: 68 | C98: 411.9477018 | D98: 28.01244372 | E98: 145.88 | F98: -117.8675563 | G98: 0.4091136209 | H98: 409.1136209 | I98: 160 | J98: 249.1136209
B99: 69 | C99: 411.9059706 | D99: 28.42151197 | E99: 146.04 | F99: -117.618488 | G99: 0.4090228305 | H99: 409.0228305 | I99: 160 | J99: 249.0228305
B100: 70 | C100: 411.8641325 | D100: 28.83048928 | E100: 146.2 | F100: -117.3695107 | G100: 0.4089317191 | H100: 408.9317191 | I100: 160 | J100: 248.9317191
B101: 71 | C101: 411.8221874 | D101: 29.23937531 | E101: 146.36 | F101: -117.1206247 | G101: 0.4088402868 | H101: 408.8402868 | I101: 160 | J101: 248.8402868
B102: 72 | C102: 411.7801353 | D102: 29.64816974 | E102: 146.52 | F102: -116.8718303 | G102: 0.4087485336 | H102: 408.7485335 | I102: 160 | J102: 248.7485335
B103: 73 | C103: 411.7379762 | D103: 30.05687227 | E103: 146.68 | F103: -116.6231277 | G103: 0.4086564594 | H103: 408.6564594 | I103: 160 | J103: 248.6564594
B104: 74 | C104: 411.6957102 | D104: 30.46548255 | E104: 146.84 | F104: -116.3745174 | G104: 0.4085640642 | H104: 408.5640642 | I104: 160 | J104: 248.5640642
B105: 75 | C105: 411.6533372 | D105: 30.87400029 | E105: 147 | F105: -116.1259997 | G105: 0.4084713482 | H105: 408.4713482 | I105: 160 | J105: 248.4713482
B106: 76 | C106: 411.6108572 | D106: 31.28242514 | E106: 147.16 | F106: -115.8775749 | G106: 0.4083783112 | H106: 408.3783112 | I106: 160 | J106: 248.3783112
B107: 77 | C107: 411.5682702 | D107: 31.6907568 | E107: 147.32 | F107: -115.6292432 | G107: 0.4082849532 | H107: 408.2849532 | I107: 160 | J107: 248.2849532
B108: 78 | C108: 411.5255762 | D108: 32.09899494 | E108: 147.48 | F108: -115.3810051 | G108: 0.4081912743 | H108: 408.1912743 | I108: 160 | J108: 248.1912743
B109: 79 | C109: 411.4827752 | D109: 32.50713924 | E109: 147.64 | F109: -115.1328608 | G109: 0.4080972745 | H109: 408.0972745 | I109: 160 | J109: 248.0972745
B110: 80 | C110: 411.4398673 | D110: 32.91518938 | E110: 147.8 | F110: -114.8848106 | G110: 0.4080029537 | H110: 408.0029537 | I110: 160 | J110: 248.0029537
B111: 81 | C111: 411.3968524 | D111: 33.32314504 | E111: 147.96 | F111: -114.636855 | G111: 0.407908312 | H111: 407.908312 | I111: 160 | J111: 247.908312
B112: 82 | C112: 411.3537305 | D112: 33.7310059 | E112: 148.12 | F112: -114.3889941 | G112: 0.4078133494 | H112: 407.8133494 | I112: 160 | J112: 247.8133494
B113: 83 | C113: 411.3105016 | D113: 34.13877164 | E113: 148.28 | F113: -114.1412284 | G113: 0.4077180658 | H113: 407.7180658 | I113: 160 | J113: 247.7180658
B114: 84 | C114: 411.2671658 | D114: 34.54644193 | E114: 148.44 | F114: -113.8935581 | G114: 0.4076224612 | H114: 407.6224612 | I114: 160 | J114: 247.6224612
B115: 85 | C115: 411.223723 | D115: 34.95401645 | E115: 148.6 | F115: -113.6459835 | G115: 0.4075265358 | H115: 407.5265358 | I115: 160 | J115: 247.5265358
B116: 86 | C116: 411.1801731 | D116: 35.36149489 | E116: 148.76 | F116: -113.3985051 | G116: 0.4074302894 | H116: 407.4302894 | I116: 160 | J116: 247.4302894
B117: 87 | C117: 411.1365164 | D117: 35.76887692 | E117: 148.92 | F117: -113.1511231 | G117: 0.407333722 | H117: 407.333722 | I117: 160 | J117: 247.333722
B118: 88 | C118: 411.0927526 | D118: 36.17616223 | E118: 149.08 | F118: -112.9038378 | G118: 0.4072368337 | H118: 407.2368337 | I118: 160 | J118: 247.2368337
B119: 89 | C119: 411.0488818 | D119: 36.58335048 | E119: 149.24 | F119: -112.6566495 | G119: 0.4071396245 | H119: 407.1396245 | I119: 160 | J119: 247.1396245
B120: 90 | C120: 411.0049041 | D120: 36.99044137 | E120: 149.4 | F120: -112.4095586 | G120: 0.4070420943 | H120: 407.0420943 | I120: 160 | J120: 247.0420943
B121: 91 | C121: 410.9608194 | D121: 37.39743457 | E121: 149.56 | F121: -112.1625654 | G121: 0.4069442432 | H121: 406.9442432 | I121: 160 | J121: 246.9442432
B122: 92 | C122: 410.9166277 | D122: 37.80432975 | E122: 149.72 | F122: -111.9156703 | G122: 0.4068460711 | H122: 406.8460712 | I122: 160 | J122: 246.8460712
B123: 93 | C123: 410.872329 | D123: 38.2111266 | E123: 149.88 | F123: -111.6688734 | G123: 0.4067475782 | H123: 406.7475782 | I123: 160 | J123: 246.7475782
B124: 94 | C124: 410.8279234 | D124: 38.6178248 | E124: 150.04 | F124: -111.4221752 | G124: 0.4066487642 | H124: 406.6487642 | I124: 160 | J124: 246.6487642
B125: 95 | C125: 410.7834108 | D125: 39.02442402 | E125: 150.2 | F125: -111.175576 | G125: 0.4065496294 | H125: 406.5496294 | I125: 160 | J125: 246.5496294
B126: 96 | C126: 410.7387911 | D126: 39.43092395 | E126: 150.36 | F126: -110.929076 | G126: 0.4064501736 | H126: 406.4501735 | I126: 160 | J126: 246.4501735
B127: 97 | C127: 410.6940646 | D127: 39.83732426 | E127: 150.52 | F127: -110.6826757 | G127: 0.4063503968 | H127: 406.3503968 | I127: 160 | J127: 246.3503968
B128: 98 | C128: 410.649231 | D128: 40.24362464 | E128: 150.68 | F128: -110.4363754 | G128: 0.4062502991 | H128: 406.2502991 | I128: 160 | J128: 246.2502991
B129: 99 | C129: 410.6042904 | D129: 40.64982475 | E129: 150.84 | F129: -110.1901752 | G129: 0.4061498805 | H129: 406.1498805 | I129: 160 | J129: 246.1498805
B130: 100 | C130: 410.5592429 | D130: 41.05592429 | E130: 151 | F130: -109.9440757 | G130: 0.4060491409 | H130: 406.0491409 | I130: 160 | J130: 246.0491409
B131: 101 | C131: 410.5140884 | D131: 41.46192293 | E131: 151.16 | F131: -109.6980771 | G131: 0.4059480804 | H131: 405.9480804 | I131: 160 | J131: 245.9480804
B132: 102 | C132: 410.4688269 | D132: 41.86782034 | E132: 151.32 | F132: -109.4521797 | G132: 0.405846699 | H132: 405.846699 | I132: 160 | J132: 245.846699
B133: 103 | C133: 410.4234584 | D133: 42.27361622 | E133: 151.48 | F133: -109.2063838 | G133: 0.4057449966 | H133: 405.7449966 | I133: 160 | J133: 245.7449966
B134: 104 | C134: 410.377983 | D134: 42.67931023 | E134: 151.64 | F134: -108.9606898 | G134: 0.4056429732 | H134: 405.6429732 | I134: 160 | J134: 245.6429732
B135: 105 | C135: 410.3324006 | D135: 43.08490206 | E135: 151.8 | F135: -108.7150979 | G135: 0.405540629 | H135: 405.540629 | I135: 160 | J135: 245.540629
B136: 106 | C136: 410.2867111 | D136: 43.49039138 | E136: 151.96 | F136: -108.4696086 | G136: 0.4054379638 | H136: 405.4379637 | I136: 160 | J136: 245.4379637
B137: 107 | C137: 410.2409148 | D137: 43.89577788 | E137: 152.12 | F137: -108.2242221 | G137: 0.4053349776 | H137: 405.3349776 | I137: 160 | J137: 245.3349776
B138: 108 | C138: 410.1950114 | D138: 44.30106123 | E138: 152.28 | F138: -107.9789388 | G138: 0.4052316705 | H138: 405.2316705 | I138: 160 | J138: 245.2316705
B139: 109 | C139: 410.149001 | D139: 44.70624111 | E139: 152.44 | F139: -107.7337589 | G139: 0.4051280425 | H139: 405.1280425 | I139: 160 | J139: 245.1280425
B140: 110 | C140: 410.1028837 | D140: 45.11131721 | E140: 152.6 | F140: -107.4886828 | G140: 0.4050240935 | H140: 405.0240935 | I140: 160 | J140: 245.0240935
B141: 111 | C141: 410.0566594 | D141: 45.51628919 | E141: 152.76 | F141: -107.2437108 | G141: 0.4049198236 | H141: 404.9198236 | I141: 160 | J141: 244.9198236
B142: 112 | C142: 410.0103281 | D142: 45.92115675 | E142: 152.92 | F142: -106.9988433 | G142: 0.4048152328 | H142: 404.8152328 | I142: 160 | J142: 244.8152328
B143: 113 | C143: 409.9638898 | D143: 46.32591955 | E143: 153.08 | F143: -106.7540804 | G143: 0.404710321 | H143: 404.710321 | I143: 160 | J143: 244.710321
B144: 114 | C144: 409.9173446 | D144: 46.73057728 | E144: 153.24 | F144: -106.5094227 | G144: 0.4046050882 | H144: 404.6050882 | I144: 160 | J144: 244.6050882
B145: 115 | C145: 409.8706924 | D145: 47.13512962 | E145: 153.4 | F145: -106.2648704 | G145: 0.4044995346 | H145: 404.4995346 | I145: 160 | J145: 244.4995346
B146: 116 | C146: 409.8239332 | D146: 47.53957625 | E146: 153.56 | F146: -106.0204238 | G146: 0.4043936599 | H146: 404.3936599 | I146: 160 | J146: 244.3936599
B147: 117 | C147: 409.777067 | D147: 47.94391683 | E147: 153.72 | F147: -105.7760832 | G147: 0.4042874644 | H147: 404.2874644 | I147: 160 | J147: 244.2874644
B148: 118 | C148: 409.7300938 | D148: 48.34815107 | E148: 153.88 | F148: -105.5318489 | G148: 0.4041809479 | H148: 404.1809479 | I148: 160 | J148: 244.1809479
B149: 119 | C149: 409.6830136 | D149: 48.75227862 | E149: 154.04 | F149: -105.2877214 | G149: 0.4040741105 | H149: 404.0741105 | I149: 160 | J149: 244.0741105
B150: 120 | C150: 409.6358265 | D150: 49.15629918 | E150: 154.2 | F150: -105.0437008 | G150: 0.4039669521 | H150: 403.9669521 | I150: 160 | J150: 243.9669521
B151: 121 | C151: 409.5885324 | D151: 49.56021242 | E151: 154.36 | F151: -104.7997876 | G151: 0.4038594728 | H151: 403.8594728 | I151: 160 | J151: 243.8594728
B152: 122 | C152: 409.5411313 | D152: 49.96401802 | E152: 154.52 | F152: -104.555982 | G152: 0.4037516725 | H152: 403.7516725 | I152: 160 | J152: 243.7516725
B153: 123 | C153: 409.4936232 | D153: 50.36771566 | E153: 154.68 | F153: -104.3122843 | G153: 0.4036435514 | H153: 403.6435514 | I153: 160 | J153: 243.6435514
B154: 124 | C154: 409.4460082 | D154: 50.77130502 | E154: 154.84 | F154: -104.068695 | G154: 0.4035351092 | H154: 403.5351092 | I154: 160 | J154: 243.5351092
B155: 125 | C155: 409.3982862 | D155: 51.17478577 | E155: 155 | F155: -103.8252142 | G155: 0.4034263462 | H155: 403.4263462 | I155: 160 | J155: 243.4263462
B156: 126 | C156: 409.3504572 | D156: 51.5781576 | E156: 155.16 | F156: -103.5818424 | G156: 0.4033172621 | H156: 403.3172621 | I156: 160 | J156: 243.3172621
B157: 127 | C157: 409.3025212 | D157: 51.98142019 | E157: 155.32 | F157: -103.3385798 | G157: 0.4032078572 | H157: 403.2078572 | I157: 160 | J157: 243.2078572
B158: 128 | C158: 409.2544782 | D158: 52.38457321 | E158: 155.48 | F158: -103.0954268 | G158: 0.4030981313 | H158: 403.0981313 | I158: 160 | J158: 243.0981313
B159: 129 | C159: =$C$25*B159^2+$C$26*B159+$C$27 -> 409.2063282 | D159: =B159*C159/1000 -> 52.78761634 | E159: =COST(B159,$E$16,$E$20,$E$21,$D$20,$D$21,$D$22) -> 155.64 | F159: =D159-E159 -> -102.8523837 | G159: =($C$25*(3*B159^2)+$C$26*(2*B159)+$C$27)/1000 -> 0.4029880845 | H159: =1000*G159 -> 402.9880845 | I159: =IF(B159<$E$20,$D$20,IF(B159<$E$22,$D$21,$D$22)) -> 160 | J159: =H159-I159 -> 242.9880845
B160: 130 | C160: 409.1580713 | D160: 53.19054927 | E160: 155.8 | F160: -102.6094507 | G160: 0.4028777167 | H160: 402.8777167 | I160: 160 | J160: 242.8777167
B161: 131 | C161: 409.1097074 | D161: 53.59337167 | E161: 155.96 | F161: -102.3666283 | G161: 0.402767028 | H161: 402.767028 | I161: 160 | J161: 242.767028
B162: 132 | C162: 409.0612365 | D162: 53.99608322 | E162: 156.12 | F162: -102.1239168 | G162: 0.4026560184 | H162: 402.6560184 | I162: 160 | J162: 242.6560184
B163: 133 | C163: 409.0126586 | D163: 54.3986836 | E163: 156.28 | F163: -101.8813164 | G163: 0.4025446878 | H163: 402.5446878 | I163: 160 | J163: 242.5446878
B164: 134 | C164: 408.9639738 | D164: 54.80117249 | E164: 156.44 | F164: -101.6388275 | G164: 0.4024330362 | H164: 402.4330362 | I164: 160 | J164: 242.4330362
B165: 135 | C165: 408.915182 | D165: 55.20354956 | E165: 156.6 | F165: -101.3964504 | G165: 0.4023210638 | H165: 402.3210638 | I165: 160 | J165: 242.3210638
B166: 136 | C166: 408.8662832 | D166: 55.60581451 | E166: 156.76 | F166: -101.1541855 | G166: 0.4022087704 | H166: 402.2087704 | I166: 160 | J166: 242.2087704
B167: 137 | C167: 408.8172774 | D167: 56.007967 | E167: 156.92 | F167: -100.912033 | G167: 0.402096156 | H167: 402.096156 | I167: 160 | J167: 242.096156
B168: 138 | C168: 408.7681646 | D168: 56.41000671 | E168: 157.08 | F168: -100.6699933 | G168: 0.4019832207 | H168: 401.9832207 | I168: 160 | J168: 241.9832207
B169: 139 | C169: 408.7189448 | D169: 56.81193333 | E169: 157.24 | F169: -100.4280667 | G169: 0.4018699645 | H169: 401.8699645 | I169: 160 | J169: 241.8699645
B170: 140 | C170: 408.6696181 | D170: 57.21374654 | E170: 157.4 | F170: -100.1862535 | G170: 0.4017563873 | H170: 401.7563873 | I170: 160 | J170: 241.7563873
B171: 141 | C171: 408.6201844 | D171: 57.615446 | E171: 157.56 | F171: -99.944554 | G171: 0.4016424892 | H171: 401.6424892 | I171: 160 | J171: 241.6424892
B172: 142 | C172: 408.5706437 | D172: 58.01703141 | E172: 157.72 | F172: -99.70296859 | G172: 0.4015282701 | H172: 401.5282701 | I172: 160 | J172: 241.5282701
B173: 143 | C173: 408.520996 | D173: 58.41850243 | E173: 157.88 | F173: -99.46149757 | G173: 0.4014137302 | H173: 401.4137302 | I173: 160 | J173: 241.4137302
B174: 144 | C174: 408.4712414 | D174: 58.81985876 | E174: 158.04 | F174: -99.22014124 | G174: 0.4012988692 | H174: 401.2988692 | I174: 160 | J174: 241.2988692
B175: 145 | C175: 408.4213798 | D175: 59.22110007 | E175: 158.2 | F175: -98.97889993 | G175: 0.4011836874 | H175: 401.1836874 | I175: 160 | J175: 241.1836874
B176: 146 | C176: 408.3714111 | D176: 59.62222603 | E176: 158.36 | F176: -98.73777397 | G176: 0.4010681846 | H176: 401.0681846 | I176: 160 | J176: 241.0681846
B177: 147 | C177: 408.3213356 | D177: 60.02323633 | E177: 158.52 | F177: -98.49676367 | G177: 0.4009523608 | H177: 400.9523608 | I177: 160 | J177: 240.9523608
B178: 148 | C178: 408.271153 | D178: 60.42413064 | E178: 158.68 | F178: -98.25586936 | G178: 0.4008362161 | H178: 400.8362161 | I178: 160 | J178: 240.8362161
B179: 149 | C179: 408.2208634 | D179: 60.82490865 | E179: 158.84 | F179: -98.01509135 | G179: 0.4007197505 | H179: 400.7197505 | I179: 160 | J179: 240.7197505
B180: 150 | C180: 408.1704669 | D180: 61.22557004 | E180: 159 | F180: -97.77442996 | G180: 0.4006029639 | H180: 400.6029639 | I180: 160 | J180: 240.6029639
B181: 151 | C181: 408.1199634 | D181: 61.62611447 | E181: 159.16 | F181: -97.53388553 | G181: 0.4004858564 | H181: 400.4858564 | I181: 160 | J181: 240.4858564
B182: 152 | C182: 408.0693529 | D182: 62.02654164 | E182: 159.32 | F182: -97.29345836 | G182: 0.4003684279 | H182: 400.368428 | I182: 160 | J182: 240.368428
B183: 153 | C183: 408.0186354 | D183: 62.42685122 | E183: 159.48 | F183: -97.05314878 | G183: 0.4002506786 | H183: 400.2506786 | I183: 160 | J183: 240.2506786
B184: 154 | C184: 407.967811 | D184: 62.82704289 | E184: 159.64 | F184: -96.81295711 | G184: 0.4001326082 | H184: 400.1326082 | I184: 160 | J184: 240.1326082
B185: 155 | C185: 407.9168796 | D185: 63.22711633 | E185: 159.8 | F185: -96.57288367 | G185: 0.400014217 | H185: 400.014217 | I185: 160 | J185: 240.014217
B186: 156 | C186: 407.8658411 | D186: 63.62707122 | E186: 159.96 | F186: -96.33292878 | G186: 0.3998955047 | H186: 399.8955047 | I186: 160 | J186: 239.8955047
B187: 157 | C187: 407.8146958 | D187: 64.02690723 | E187: 160.12 | F187: -96.09309277 | G187: 0.3997764716 | H187: 399.7764716 | I187: 160 | J187: 239.7764716
B188: 158 | C188: 407.7634434 | D188: 64.42662406 | E188: 160.28 | F188: -95.85337594 | G188: 0.3996571175 | H188: 399.6571175 | I188: 160 | J188: 239.6571175
B189: 159 | C189: 407.712084 | D189: 64.82622136 | E189: 160.44 | F189: -95.61377864 | G189: 0.3995374425 | H189: 399.5374425 | I189: 160 | J189: 239.5374425
B190: 160 | C190: 407.6606177 | D190: 65.22569883 | E190: 160.6 | F190: -95.37430117 | G190: 0.3994174465 | H190: 399.4174465 | I190: 160 | J190: 239.4174465
B191: 161 | C191: 407.6090444 | D191: 65.62505615 | E191: 160.76 | F191: -95.13494385 | G191: 0.3992971296 | H191: 399.2971296 | I191: 160 | J191: 239.2971296
B192: 162 | C192: 407.5573641 | D192: 66.02429299 | E192: 160.92 | F192: -94.89570701 | G192: 0.3991764917 | H192: 399.1764917 | I192: 160 | J192: 239.1764917
B193: 163 | C193: 407.5055768 | D193: 66.42340902 | E193: 161.08 | F193: -94.65659098 | G193: 0.399055533 | H193: 399.055533 | I193: 160 | J193: 239.055533
B194: 164 | C194: 407.4536826 | D194: 66.82240394 | E194: 161.24 | F194: -94.41759606 | G194: 0.3989342532 | H194: 398.9342532 | I194: 160 | J194: 238.9342532
B195: 165 | C195: 407.4016814 | D195: 67.22127742 | E195: 161.4 | F195: -94.17872258 | G195: 0.3988126526 | H195: 398.8126526 | I195: 160 | J195: 238.8126526
B196: 166 | C196: 407.3495731 | D196: 67.62002914 | E196: 161.56 | F196: -93.93997086 | G196: 0.3986907309 | H196: 398.6907309 | I196: 160 | J196: 238.6907309
B197: 167 | C197: 407.297358 | D197: 68.01865878 | E197: 161.72 | F197: -93.70134122 | G197: 0.3985684884 | H197: 398.5684884 | I197: 160 | J197: 238.5684884
B198: 168 | C198: 407.2450358 | D198: 68.41716601 | E198: 161.88 | F198: -93.46283399 | G198: 0.3984459249 | H198: 398.4459249 | I198: 160 | J198: 238.4459249
B199: 169 | C199: 407.1926066 | D199: 68.81555052 | E199: 162.04 | F199: -93.22444948 | G199: 0.3983230405 | H199: 398.3230405 | I199: 160 | J199: 238.3230405
B200: 170 | C200: 407.1400705 | D200: 69.21381199 | E200: 162.2 | F200: -92.98618801 | G200: 0.3981998351 | H200: 398.1998351 | I200: 160 | J200: 238.1998351
B201: 171 | C201: 407.0874274 | D201: 69.61195009 | E201: 162.36 | F201: -92.74804991 | G201: 0.3980763088 | H201: 398.0763088 | I201: 160 | J201: 238.0763088
B202: 172 | C202: 407.0346773 | D202: 70.0099645 | E202: 162.52 | F202: -92.5100355 | G202: 0.3979524616 | H202: 397.9524616 | I202: 160 | J202: 237.9524616
B203: 173 | C203: 406.9818202 | D203: 70.4078549 | E203: 162.68 | F203: -92.2721451 | G203: 0.3978282934 | H203: 397.8282934 | I203: 160 | J203: 237.8282934
B204: 174 | C204: 406.9288562 | D204: 70.80562098 | E204: 162.84 | F204: -92.03437902 | G204: 0.3977038042 | H204: 397.7038042 | I204: 160 | J204: 237.7038042
B205: 175 | C205: 406.8757852 | D205: 71.2032624 | E205: 163 | F205: -91.7967376 | G205: 0.3975789942 | H205: 397.5789942 | I205: 160 | J205: 237.5789942
B206: 176 | C206: 406.8226072 | D206: 71.60077886 | E206: 163.16 | F206: -91.55922114 | G206: 0.3974538631 | H206: 397.4538631 | I206: 160 | J206: 237.4538631
B207: 177 | C207: 406.7693222 | D207: 71.99817002 | E207: 163.32 | F207: -91.32182998 | G207: 0.3973284112 | H207: 397.3284112 | I207: 160 | J207: 237.3284112
... 2836 more rows

Sheet c.demo
B5: Potential national market: | D5: 350000000
B7: Test Markets
B8: Market Number | C8: Market Size | D8: Price | E8: Projected Yearly Sales (number of drives) | F8: Projected Yearly Sales (in K's) in National Mkt
B9: 1 | C9: 144900 | D9: 265.95 | E9: 570 | F9: =(E9/C9)*$D$5/1000 -> 1376.811594
B10: 2 | C10: 4627600 | D10: 276.95 | E10: 17178 | F10: 1299.226381
B11: 3 | C11: 1049800 | D11: 287.95 | E11: 3801 | F11: 1267.241379
B12: 4 | C12: 2946500 | D12: 299.95 | E12: 9941 | F12: 1180.841677
B13: 5 | C13: 5042300 | D13: 310.95 | E13: 15594 | F13: 1082.422704
B14: 6 | C14: 3617600 | D14: 321.95 | E14: 10859 | F14: 1050.599845
D15: y-values | F15: x-values
B16: Fixed Cost For The Year: | D16: 135000000 | E16: 135
B18: Variable Costs
B19: Quantity | D19: Cost per drive
B20: First: | C20: 800000 | D20: 160 | E20: 800 | F20: Batch size1
B21: Next: | C21: 400000 | D21: 128 | E21: 400 | F21: Batch size2
B22: Further: | D22: 72
B24: coefficients of the quadratic function-8 decimal places(For Q1-4 & 6) | E24: h used for the difference quotient
B25: a | C25: -5.349e-05 | E25: 1e-06
B26: b | C26: -0.03440302
B27: c | C27: 414.5344449
B28: select q to include the x-intercept of D(q) | C28: use equation obtained from fitting a quadratic trend line(use a,b,c) | E28: user defined COST function
B29: q | C29: D(q) | D29: R(q) | E29: C(q) | F29: P(q) | G29: R(q+h) | H29: R(q-h) | I29: R'(q) | J29: MR(q) | K29: MC(q) | L29: MP(q)
B30: 0 | C30: =$C$25*B30^2+$C$26*B30+$C$27 -> 414.5344449 | D30: =B30*C30/1000 -> 0 | E30: =COST(B30,$E$16,$E$20,$E$21,$D$20,$D$21,$D$22) -> 135 | F30: =D30-E30 -> -135
B31: 1 | C31: =$C$25*B31^2+$C$26*B31+$C$27 -> 414.4999884 | D31: =B31*C31/1000 -> 0.4144999884 | E31: =COST(B31,$E$16,$E$20,$E$21,$D$20,$D$21,$D$22) -> 135.16 | F31: =D31-E31 -> -134.7455
B32: 2 | C32: 414.4654249 | D32: 0.8289308498 | E32: 135.32 | F32: -134.4910692
B33: 3 | C33: 414.4307544 | D33: 1.243292263 | E33: 135.48 | F33: -134.2367077
B34: 4 | C34: 414.395977 | D34: 1.657583908 | E34: 135.64 | F34: -133.9824161
B35: 5 | C35: 414.3610926 | D35: 2.071805463 | E35: 135.8 | F35: -133.7281945
B36: 6 | C36: 414.3261011 | D36: 2.485956607 | E36: 135.96 | F36: -133.4740434
B37: 7 | C37: 414.2910028 | D37: 2.900037019 | E37: 136.12 | F37: -133.219963
B38: 8 | C38: 414.2557974 | D38: 3.314046379 | E38: 136.28 | F38: -132.9659536
B39: 9 | C39: 414.220485 | D39: 3.727984365 | E39: 136.44 | F39: -132.7120156
B40: 10 | C40: 414.1850657 | D40: 4.141850657 | E40: 136.6 | F40: -132.4581493
B41: 11 | C41: 414.1495394 | D41: 4.555644933 | E41: 136.76 | F41: -132.2043551
B42: 12 | C42: 414.1139061 | D42: 4.969366873 | E42: 136.92 | F42: -131.9506331
B43: 13 | C43: 414.0781658 | D43: 5.383016156 | E43: 137.08 | F43: -131.6969838
B44: 14 | C44: 414.0423186 | D44: 5.79659246 | E44: 137.24 | F44: -131.4434075
B45: 15 | C45: 414.0063644 | D45: 6.210095465 | E45: 137.4 | F45: -131.1899045
B46: 16 | C46: 413.9703032 | D46: 6.62352485 | E46: 137.56 | F46: -130.9364751
B47: 17 | C47: 413.934135 | D47: 7.036880294 | E47: 137.72 | F47: -130.6831197
B48: 18 | C48: 413.8978598 | D48: 7.450161476 | E48: 137.88 | F48: -130.4298385
B49: 19 | C49: 413.8614776 | D49: 7.863368075 | E49: 138.04 | F49: -130.1766319
B50: 20 | C50: 413.8249885 | D50: 8.27649977 | E50: 138.2 | F50: -129.9235002
B51: 21 | C51: 413.7883924 | D51: 8.68955624 | E51: 138.36 | F51: -129.6704438
B52: 22 | C52: 413.7516893 | D52: 9.102537165 | E52: 138.52 | F52: -129.4174628
B53: 23 | C53: 413.7148792 | D53: 9.515442223 | E53: 138.68 | F53: -129.1645578
B54: 24 | C54: 413.6779622 | D54: 9.928271093 | E54: 138.84 | F54: -128.9117289
B55: 25 | C55: 413.6409382 | D55: 10.34102345 | E55: 139 | F55: -128.6589765
B56: 26 | C56: 413.6038071 | D56: 10.75369899 | E56: 139.16 | F56: -128.406301
B57: 27 | C57: 413.5665692 | D57: 11.16629737 | E57: 139.32 | F57: -128.1537026
B58: 28 | C58: 413.5292242 | D58: 11.57881828 | E58: 139.48 | F58: -127.9011817
B59: 29 | C59: 413.4917722 | D59: 11.99126139 | E59: 139.64 | F59: -127.6487386
B60: 30 | C60: 413.4542133 | D60: 12.4036264 | E60: 139.8 | F60: -127.3963736
B61: 31 | C61: 413.4165474 | D61: 12.81591297 | E61: 139.96 | F61: -127.144087
B62: 32 | C62: 413.3787745 | D62: 13.22812078 | E62: 140.12 | F62: -126.8918792
B63: 33 | C63: 413.3408946 | D63: 13.64024952 | E63: 140.28 | F63: -126.6397505
B64: 34 | C64: 413.3029078 | D64: 14.05229886 | E64: 140.44 | F64: -126.3877011
B65: 35 | C65: 413.264814 | D65: 14.46426849 | E65: 140.6 | F65: -126.1357315
B66: 36 | C66: 413.2266131 | D66: 14.87615807 | E66: 140.76 | F66: -125.8838419
B67: 37 | C67: 413.1883054 | D67: 15.2879673 | E67: 140.92 | F67: -125.6320327
B68: 38 | C68: 413.1498906 | D68: 15.69969584 | E68: 141.08 | F68: -125.3803042
B69: 39 | C69: 413.1113688 | D69: 16.11134338 | E69: 141.24 | F69: -125.1286566
B70: 40 | C70: 413.0727401 | D70: 16.5229096 | E70: 141.4 | F70: -124.8770904
B71: 41 | C71: 413.0340044 | D71: 16.93439418 | E71: 141.56 | F71: -124.6256058
B72: 42 | C72: 412.9951617 | D72: 17.34579679 | E72: 141.72 | F72: -124.3742032
B73: 43 | C73: 412.956212 | D73: 17.75711712 | E73: 141.88 | F73: -124.1228829
B74: 44 | C74: 412.9171554 | D74: 18.16835484 | E74: 142.04 | F74: -123.8716452
B75: 45 | C75: 412.8779918 | D75: 18.57950963 | E75: 142.2 | F75: -123.6204904
B76: 46 | C76: 412.8387211 | D76: 18.99058117 | E76: 142.36 | F76: -123.3694188
B77: 47 | C77: 412.7993436 | D77: 19.40156915 | E77: 142.52 | F77: -123.1184309
B78: 48 | C78: 412.759859 | D78: 19.81247323 | E78: 142.68 | F78: -122.8675268
B79: 49 | C79: 412.7202674 | D79: 20.2232931 | E79: 142.84 | F79: -122.6167069
B80: 50 | C80: 412.6805689 | D80: 20.63402845 | E80: 143 | F80: -122.3659716
B81: 51 | C81: 412.6407634 | D81: 21.04467893 | E81: 143.16 | F81: -122.1153211
B82: 52 | C82: 412.6008509 | D82: 21.45524425 | E82: 143.32 | F82: -121.8647558
B83: 53 | C83: 412.5608314 | D83: 21.86572407 | E83: 143.48 | F83: -121.6142759
B84: 54 | C84: 412.520705 | D84: 22.27611807 | E84: 143.64 | F84: -121.3638819
B85: 55 | C85: 412.4804716 | D85: 22.68642594 | E85: 143.8 | F85: -121.1135741
B86: 56 | C86: 412.4401312 | D86: 23.09664734 | E86: 143.96 | F86: -120.8633527
B87: 57 | C87: 412.3996838 | D87: 23.50678197 | E87: 144.12 | F87: -120.613218
B88: 58 | C88: 412.3591294 | D88: 23.9168295 | E88: 144.28 | F88: -120.3631705
B89: 59 | C89: 412.318468 | D89: 24.32678961 | E89: 144.44 | F89: -120.1132104
B90: 60 | C90: 412.2776997 | D90: 24.73666198 | E90: 144.6 | F90: -119.863338
B91: 61 | C91: 412.2368244 | D91: 25.14644629 | E91: 144.76 | F91: -119.6135537
B92: 62 | C92: 412.1958421 | D92: 25.55614221 | E92: 144.92 | F92: -119.3638578
B93: 63 | C93: 412.1547528 | D93: 25.96574943 | E93: 145.08 | F93: -119.1142506
B94: 64 | C94: 412.1135566 | D94: 26.37526762 | E94: 145.24 | F94: -118.8647324
B95: 65 | C95: =$C$25*B95^2+$C$26*B95+$C$27 -> 412.0722534 | D95: =B95*C95/1000 -> 26.78469647 | E95: =COST(B95,$E$16,$E$20,$E$21,$D$20,$D$21,$D$22) -> 145.4 | F95: =D95-E95 -> -118.6153035
B96: 66 | C96: 412.0308432 | D96: 27.19403565 | E96: 145.56 | F96: -118.3659644
B97: 67 | C97: 411.989326 | D97: 27.60328484 | E97: 145.72 | F97: -118.1167152
B98: 68 | C98: 411.9477018 | D98: 28.01244372 | E98: 145.88 | F98: -117.8675563
B99: 69 | C99: 411.9059706 | D99: 28.42151197 | E99: 146.04 | F99: -117.618488
B100: 70 | C100: 411.8641325 | D100: 28.83048928 | E100: 146.2 | F100: -117.3695107
B101: 71 | C101: 411.8221874 | D101: 29.23937531 | E101: 146.36 | F101: -117.1206247
B102: 72 | C102: 411.7801353 | D102: 29.64816974 | E102: 146.52 | F102: -116.8718303
B103: 73 | C103: 411.7379762 | D103: 30.05687227 | E103: 146.68 | F103: -116.6231277
B104: 74 | C104: 411.6957102 | D104: 30.46548255 | E104: 146.84 | F104: -116.3745174
B105: 75 | C105: 411.6533372 | D105: 30.87400029 | E105: 147 | F105: -116.1259997
B106: 76 | C106: 411.6108572 | D106: 31.28242514 | E106: 147.16 | F106: -115.8775749
B107: 77 | C107: 411.5682702 | D107: 31.6907568 | E107: 147.32 | F107: -115.6292432
B108: 78 | C108: 411.5255762 | D108: 32.09899494 | E108: 147.48 | F108: -115.3810051
B109: 79 | C109: 411.4827752 | D109: 32.50713924 | E109: 147.64 | F109: -115.1328608
B110: 80 | C110: 411.4398673 | D110: 32.91518938 | E110: 147.8 | F110: -114.8848106
B111: 81 | C111: 411.3968524 | D111: 33.32314504 | E111: 147.96 | F111: -114.636855
B112: 82 | C112: 411.3537305 | D112: 33.7310059 | E112: 148.12 | F112: -114.3889941
B113: 83 | C113: 411.3105016 | D113: 34.13877164 | E113: 148.28 | F113: -114.1412284
B114: 84 | C114: 411.2671658 | D114: 34.54644193 | E114: 148.44 | F114: -113.8935581
B115: 85 | C115: 411.223723 | D115: 34.95401645 | E115: 148.6 | F115: -113.6459835
B116: 86 | C116: 411.1801731 | D116: 35.36149489 | E116: 148.76 | F116: -113.3985051
B117: 87 | C117: 411.1365164 | D117: 35.76887692 | E117: 148.92 | F117: -113.1511231
B118: 88 | C118: 411.0927526 | D118: 36.17616223 | E118: 149.08 | F118: -112.9038378
B119: 89 | C119: 411.0488818 | D119: 36.58335048 | E119: 149.24 | F119: -112.6566495
B120: 90 | C120: 411.0049041 | D120: 36.99044137 | E120: 149.4 | F120: -112.4095586
B121: 91 | C121: 410.9608194 | D121: 37.39743457 | E121: 149.56 | F121: -112.1625654
B122: 92 | C122: 410.9166277 | D122: 37.80432975 | E122: 149.72 | F122: -111.9156703
B123: 93 | C123: 410.872329 | D123: 38.2111266 | E123: 149.88 | F123: -111.6688734
B124: 94 | C124: 410.8279234 | D124: 38.6178248 | E124: 150.04 | F124: -111.4221752
B125: 95 | C125: 410.7834108 | D125: 39.02442402 | E125: 150.2 | F125: -111.175576
B126: 96 | C126: 410.7387911 | D126: 39.43092395 | E126: 150.36 | F126: -110.929076
B127: 97 | C127: 410.6940646 | D127: 39.83732426 | E127: 150.52 | F127: -110.6826757
B128: 98 | C128: 410.649231 | D128: 40.24362464 | E128: 150.68 | F128: -110.4363754
B129: 99 | C129: 410.6042904 | D129: 40.64982475 | E129: 150.84 | F129: -110.1901752
B130: 100 | C130: 410.5592429 | D130: 41.05592429 | E130: 151 | F130: -109.9440757
B131: 101 | C131: 410.5140884 | D131: 41.46192293 | E131: 151.16 | F131: -109.6980771
B132: 102 | C132: 410.4688269 | D132: 41.86782034 | E132: 151.32 | F132: -109.4521797
B133: 103 | C133: 410.4234584 | D133: 42.27361622 | E133: 151.48 | F133: -109.2063838
B134: 104 | C134: 410.377983 | D134: 42.67931023 | E134: 151.64 | F134: -108.9606898
B135: 105 | C135: 410.3324006 | D135: 43.08490206 | E135: 151.8 | F135: -108.7150979
B136: 106 | C136: 410.2867111 | D136: 43.49039138 | E136: 151.96 | F136: -108.4696086
B137: 107 | C137: 410.2409148 | D137: 43.89577788 | E137: 152.12 | F137: -108.2242221
B138: 108 | C138: 410.1950114 | D138: 44.30106123 | E138: 152.28 | F138: -107.9789388
B139: 109 | C139: 410.149001 | D139: 44.70624111 | E139: 152.44 | F139: -107.7337589
B140: 110 | C140: 410.1028837 | D140: 45.11131721 | E140: 152.6 | F140: -107.4886828
B141: 111 | C141: 410.0566594 | D141: 45.51628919 | E141: 152.76 | F141: -107.2437108
B142: 112 | C142: 410.0103281 | D142: 45.92115675 | E142: 152.92 | F142: -106.9988433
B143: 113 | C143: 409.9638898 | D143: 46.32591955 | E143: 153.08 | F143: -106.7540804
B144: 114 | C144: 409.9173446 | D144: 46.73057728 | E144: 153.24 | F144: -106.5094227
B145: 115 | C145: 409.8706924 | D145: 47.13512962 | E145: 153.4 | F145: -106.2648704
B146: 116 | C146: 409.8239332 | D146: 47.53957625 | E146: 153.56 | F146: -106.0204238
B147: 117 | C147: 409.777067 | D147: 47.94391683 | E147: 153.72 | F147: -105.7760832
B148: 118 | C148: 409.7300938 | D148: 48.34815107 | E148: 153.88 | F148: -105.5318489
B149: 119 | C149: 409.6830136 | D149: 48.75227862 | E149: 154.04 | F149: -105.2877214
B150: 120 | C150: 409.6358265 | D150: 49.15629918 | E150: 154.2 | F150: -105.0437008
B151: 121 | C151: 409.5885324 | D151: 49.56021242 | E151: 154.36 | F151: -104.7997876
B152: 122 | C152: 409.5411313 | D152: 49.96401802 | E152: 154.52 | F152: -104.555982
B153: 123 | C153: 409.4936232 | D153: 50.36771566 | E153: 154.68 | F153: -104.3122843
B154: 124 | C154: 409.4460082 | D154: 50.77130502 | E154: 154.84 | F154: -104.068695
B155: 125 | C155: 409.3982862 | D155: 51.17478577 | E155: 155 | F155: -103.8252142
B156: 126 | C156: 409.3504572 | D156: 51.5781576 | E156: 155.16 | F156: -103.5818424
B157: 127 | C157: 409.3025212 | D157: 51.98142019 | E157: 155.32 | F157: -103.3385798
B158: 128 | C158: 409.2544782 | D158: 52.38457321 | E158: 155.48 | F158: -103.0954268
B159: 129 | C159: =$C$25*B159^2+$C$26*B159+$C$27 -> 409.2063282 | D159: =B159*C159/1000 -> 52.78761634 | E159: =COST(B159,$E$16,$E$20,$E$21,$D$20,$D$21,$D$22) -> 155.64 | F159: =D159-E159 -> -102.8523837
B160: 130 | C160: 409.1580713 | D160: 53.19054927 | E160: 155.8 | F160: -102.6094507
B161: 131 | C161: 409.1097074 | D161: 53.59337167 | E161: 155.96 | F161: -102.3666283
B162: 132 | C162: 409.0612365 | D162: 53.99608322 | E162: 156.12 | F162: -102.1239168
B163: 133 | C163: 409.0126586 | D163: 54.3986836 | E163: 156.28 | F163: -101.8813164
B164: 134 | C164: 408.9639738 | D164: 54.80117249 | E164: 156.44 | F164: -101.6388275
B165: 135 | C165: 408.915182 | D165: 55.20354956 | E165: 156.6 | F165: -101.3964504
B166: 136 | C166: 408.8662832 | D166: 55.60581451 | E166: 156.76 | F166: -101.1541855
B167: 137 | C167: 408.8172774 | D167: 56.007967 | E167: 156.92 | F167: -100.912033
B168: 138 | C168: 408.7681646 | D168: 56.41000671 | E168: 157.08 | F168: -100.6699933
B169: 139 | C169: 408.7189448 | D169: 56.81193333 | E169: 157.24 | F169: -100.4280667
B170: 140 | C170: 408.6696181 | D170: 57.21374654 | E170: 157.4 | F170: -100.1862535
B171: 141 | C171: 408.6201844 | D171: 57.615446 | E171: 157.56 | F171: -99.944554
B172: 142 | C172: 408.5706437 | D172: 58.01703141 | E172: 157.72 | F172: -99.70296859
B173: 143 | C173: 408.520996 | D173: 58.41850243 | E173: 157.88 | F173: -99.46149757
B174: 144 | C174: 408.4712414 | D174: 58.81985876 | E174: 158.04 | F174: -99.22014124
B175: 145 | C175: 408.4213798 | D175: 59.22110007 | E175: 158.2 | F175: -98.97889993
B176: 146 | C176: 408.3714111 | D176: 59.62222603 | E176: 158.36 | F176: -98.73777397
B177: 147 | C177: 408.3213356 | D177: 60.02323633 | E177: 158.52 | F177: -98.49676367
B178: 148 | C178: 408.271153 | D178: 60.42413064 | E178: 158.68 | F178: -98.25586936
B179: 149 | C179: 408.2208634 | D179: 60.82490865 | E179: 158.84 | F179: -98.01509135
B180: 150 | C180: 408.1704669 | D180: 61.22557004 | E180: 159 | F180: -97.77442996
B181: 151 | C181: 408.1199634 | D181: 61.62611447 | E181: 159.16 | F181: -97.53388553
B182: 152 | C182: 408.0693529 | D182: 62.02654164 | E182: 159.32 | F182: -97.29345836
B183: 153 | C183: 408.0186354 | D183: 62.42685122 | E183: 159.48 | F183: -97.05314878
B184: 154 | C184: 407.967811 | D184: 62.82704289 | E184: 159.64 | F184: -96.81295711
B185: 155 | C185: 407.9168796 | D185: 63.22711633 | E185: 159.8 | F185: -96.57288367
B186: 156 | C186: 407.8658411 | D186: 63.62707122 | E186: 159.96 | F186: -96.33292878
B187: 157 | C187: 407.8146958 | D187: 64.02690723 | E187: 160.12 | F187: -96.09309277
B188: 158 | C188: 407.7634434 | D188: 64.42662406 | E188: 160.28 | F188: -95.85337594
B189: 159 | C189: 407.712084 | D189: 64.82622136 | E189: 160.44 | F189: -95.61377864
B190: 160 | C190: 407.6606177 | D190: 65.22569883 | E190: 160.6 | F190: -95.37430117
B191: 161 | C191: 407.6090444 | D191: 65.62505615 | E191: 160.76 | F191: -95.13494385
B192: 162 | C192: 407.5573641 | D192: 66.02429299 | E192: 160.92 | F192: -94.89570701
B193: 163 | C193: 407.5055768 | D193: 66.42340902 | E193: 161.08 | F193: -94.65659098
B194: 164 | C194: 407.4536826 | D194: 66.82240394 | E194: 161.24 | F194: -94.41759606
B195: 165 | C195: 407.4016814 | D195: 67.22127742 | E195: 161.4 | F195: -94.17872258
B196: 166 | C196: 407.3495731 | D196: 67.62002914 | E196: 161.56 | F196: -93.93997086
B197: 167 | C197: 407.297358 | D197: 68.01865878 | E197: 161.72 | F197: -93.70134122
B198: 168 | C198: 407.2450358 | D198: 68.41716601 | E198: 161.88 | F198: -93.46283399
B199: 169 | C199: 407.1926066 | D199: 68.81555052 | E199: 162.04 | F199: -93.22444948
B200: 170 | C200: 407.1400705 | D200: 69.21381199 | E200: 162.2 | F200: -92.98618801
B201: 171 | C201: 407.0874274 | D201: 69.61195009 | E201: 162.36 | F201: -92.74804991
B202: 172 | C202: 407.0346773 | D202: 70.0099645 | E202: 162.52 | F202: -92.5100355
B203: 173 | C203: 406.9818202 | D203: 70.4078549 | E203: 162.68 | F203: -92.2721451
B204: 174 | C204: 406.9288562 | D204: 70.80562098 | E204: 162.84 | F204: -92.03437902
B205: 175 | C205: 406.8757852 | D205: 71.2032624 | E205: 163 | F205: -91.7967376
B206: 176 | C206: 406.8226072 | D206: 71.60077886 | E206: 163.16 | F206: -91.55922114
B207: 177 | C207: 406.7693222 | D207: 71.99817002 | E207: 163.32 | F207: -91.32182998
... 2823 more rows

Sheet Data
B5: Potential national market: | D5: 350000000
B7: Test Markets
B8: Market Number | C8: Market Size | D8: Price | E8: Projected Yearly Sales (number of drives)
B9: 1 | C9: 144900 | D9: 265.95 | E9: 570
B10: 2 | C10: 4627600 | D10: 276.95 | E10: 17178
B11: 3 | C11: 1049800 | D11: 287.95 | E11: 3801
B12: 4 | C12: 2946500 | D12: 299.95 | E12: 9941
B13: 5 | C13: 5042300 | D13: 310.95 | E13: 15594
B14: 6 | C14: 3617600 | D14: 321.95 | E14: 10859
B16: Fixed Cost For The Year: | D16: 135000000
B18: Variable Costs
B19: Quantity | D19: Cost per drive
B20: First: | C20: 800000 | D20: 160
B21: Next: | C21: 400000 | D21: 128
B22: Further: | D22: 72
